Cogmind - Beta 16 @@@ ROGUE MODE // 2025.11.21 @ 04:33:01 // Winter2019/RPGLIKE Player: Jaegerpls Result: Destroyed by Combat Programmer with EMDS Performance ------------- Evolutions (9) 4500 Regions Visited (30) 6000 Robots Destroyed (538) 2690 Value Destroyed (28131) 28131 Prototype IDs (106) 2120 Alien Tech Used (1) 200 Bonus (19792) 19792 TOTAL SCORE: 63433 Bonus ------- High Alert Combat Kills 2435 Follower Combat Kills 157 Destroyed Unchained 2000 Aligned with FarCom 300 Met Data Miner 300 Met Imprinter 300 Destroyed Z-Imprinter 1000 Met Zhirov 300 Met Warlord at Base 500 MAIN.C Attacked Warlord 500 Met Warlord at Research 2000 Met MAIN.C 5000 Destroyed MAIN.C Shell 5000 Cogmind --------- Core Integrity 0/1750 Matter 300/300 Energy 790/790 System Corruption 3% Temperature Cool (10) Movement Flying (14) Location -1/Command Parts ------- > --- POWER (3) -------- Light Quantum Reactor Vortex Chain Reactor > --- PROPULSION (6) --- Advanced Surge Thruster Improved Diametric Drive Cooled Impulse Thruster Cooled Impulse Thruster Cooled Impulse Thruster Cooled Impulse Thruster > --- UTILITY (12) ----- Advanced Quantum Shading Machine Advanced Signal Interpreter Long-range Terrain Scanner Advanced Melee Analysis Suite Experimental Armor Integrity Analyzer Nanoactuators Advanced Actuator Array Experimental Transmission Jammer Ghost Barrier Advanced System Restoration Module > --- WEAPON (4) ------- Shock Maul Makeshift Axe Makeshift Axe Longsword +1 > --- INVENTORY (4) ---- Advanced Component Analysis Suite Advanced Remote Datajack Peak State ------------ > --- POWER ------------ Light Quantum Reactor Vortex Chain Reactor > --- PROPULSION ------- Improved Diametric Drive Cooled Impulse Thruster Cooled Impulse Thruster Cooled Impulse Thruster Cooled Impulse Thruster Cooled Q-thruster > --- UTILITY ---------- Advanced Quantum Shading Machine Advanced Signal Interpreter Long-range Terrain Scanner Advanced Melee Analysis Suite Advanced Melee Analysis Suite Experimental Armor Integrity Analyzer Experimental Transmission Jammer Advanced Reaction Control System Experimental Phase Shifter Ghost Barrier Advanced Component Analysis Suite Advanced System Restoration Module > --- WEAPON ----------- Shock Maul Makeshift Axe Makeshift Axe Longsword +1 > --- INVENTORY -------- Nanoactuators Advanced Actuator Array System Purifier Advanced Remote Datajack [Rating: 201] Favorites ----------- Power Light Angular Momentum Engine Engine Light Angular Momentum Engine Power Core Enhanced Nuclear Core Reactor Zionite Light DM Reactor Propulsion Cooled VTOL Module Leg Zionite Composite Leg I Wheel Wheel Hover Unit Zionite Glidesys I Flight Unit Cooled VTOL Module Utility Advanced Melee Analysis Suite Device Force Booster Storage Zionite Biocell Processor Advanced Melee Analysis Suite Hackware Advanced Hacking Suite Protection Zionite Weapon Casing Weapon Makeshift Axe Energy Gun EM Pulse Gun Energy Cannon Nova Cannon Special Weapon Plasma Cutter Impact Weapon Shock Maul Slashing Weapon Makeshift Axe Special Melee Weapon Dirty Datajack Build | -11 -10 -10 -10 -9 -8 -7 -7 -7 -7 -6 -6 -6 -6 -6 -6 -5 -5 -5 -5 -5 -4 -4 -4 -4 -4 -3 -3 -2 -1 -1 ------- Run | Yrd Mat Min Exi Min Mat Fac Low Low Dat Pro Fac Low Low Zio Dee Pro Fac Upp Upp Zhi Pro Fac Upp Upp War Pro Res Res Acc Com Slots Evolved 21 | 4 1 . 2 1 5 2 . . . 1 . . . . . 1 . . . . . 1 . . . . 1 . 2 . Power 2 | . . . . 1 . . . . . . . . . . . . . . . . . . . . . . . . 1 . Propulsion 5 | 1 1 . 1 . 1 . . . . . . . . . . . . . . . . 1 . . . . . . . . Utility 11 | 2 . . 1 . 2 2 . . . 1 . . . . . 1 . . . . . . . . . . 1 . 1 . Weapon 3 | 1 . . . . 2 . . . . . . . . . . . . . . . . . . . . . . . . . Parts Attached 143 | 6 14 1 1 5 15 17 3 2 . 2 13 . . 5 10 2 11 1 1 1 . 5 . 2 8 1 7 3 4 3 Power 14 | 1 3 . . 2 1 4 . . . . . . . . 1 . . . . . . . . . 1 . . . 1 . Engine 8 | 1 3 . . 2 1 1 . . . . . . . . . . . . . . . . . . . . . . . . Core 3 | . . . . . . 3 . . . . . . . . . . . . . . . . . . . . . . . . Reactor 3 | . . . . . . . . . . . . . . . 1 . . . . . . . . . 1 . . . 1 . Propulsion 37 | 2 3 1 . 1 3 7 . . . . 3 . . . 2 . 4 . . . . 2 . . 2 1 3 1 1 1 Treads . | . . . . . . . . . . . . . . . . . . . . . . . . . . . . . . . Leg 1 | . . . . . . . . . . . . . . . 1 . . . . . . . . . . . . . . . Wheel 2 | 2 . . . . . . . . . . . . . . . . . . . . . . . . . . . . . . Hover 1 | . . . . . . . . . . . . . . . 1 . . . . . . . . . . . . . . . Flight 33 | . 3 1 . 1 3 7 . . . . 3 . . . . . 4 . . . . 2 . . 2 1 3 1 1 1 Utility 67 | 1 4 . . 1 8 3 3 1 . 1 9 . . 3 5 2 7 1 1 1 . 3 . 1 4 . 3 2 2 1 Device 45 | 1 3 . . 1 4 1 1 1 . . 7 . . 3 2 1 6 1 . . . 2 . 1 2 . 3 2 2 1 Storage 1 | . . . . . . . . . . . . . . . 1 . . . . . . . . . . . . . . . Processor 11 | . 1 . . . 2 1 1 . . 1 1 . . . . . 1 . 1 . . 1 . . 1 . . . . . Hackware 7 | . . . . . 2 1 1 . . . 1 . . . . 1 . . . . . . . . 1 . . . . . Protection 3 | . . . . . . . . . . . . . . . 2 . . . . 1 . . . . . . . . . . Artifact . | . . . . . . . . . . . . . . . . . . . . . . . . . . . . . . . Weapon 25 | 2 4 . 1 1 3 3 . 1 . 1 1 . . 2 2 . . . . . . . . 1 1 . 1 . . 1 Energy Gun 8 | 2 1 . . . . . . . . . . . . 1 2 . . . . . . . . 1 1 . . . . . Energy Cannon 1 | . . . . . . . . . . . . . . . . . . . . . . . . . . . . . . 1 Ballistic Gun . | . . . . . . . . . . . . . . . . . . . . . . . . . . . . . . . Ballistic Cannon . | . . . . . . . . . . . . . . . . . . . . . . . . . . . . . . . Launcher . | . . . . . . . . . . . . . . . . . . . . . . . . . . . . . . . Special Weapon 3 | . . . . 1 . 1 . . . . . . . . . . . . . . . . . . . . 1 . . . Impact Weapon 5 | . 2 . . . 1 . . 1 . . 1 . . . . . . . . . . . . . . . . . . . Slashing Weapon 7 | . . . 1 . 2 2 . . . 1 . . . 1 . . . . . . . . . . . . . . . . Piercing Weapon . | . . . . . . . . . . . . . . . . . . . . . . . . . . . . . . . Special Melee Weapon 1 | . 1 . . . . . . . . . . . . . . . . . . . . . . . . . . . . . Unidentified Prototypes 37 | . . . . . 1 3 . . . . 3 . . 4 9 . 5 . . 2 . 2 . . 7 . 1 . . . Parts Lost 8 | . 1 . . 1 . 1 . . . . . . . . 1 . 1 1 . . . . . . . . . . . 2 Power . | . . . . . . . . . . . . . . . . . . . . . . . . . . . . . . . Propulsion 2 | . . . . 1 . 1 . . . . . . . . . . . . . . . . . . . . . . . . Utility 5 | . . . . . . . . . . . . . . . 1 . 1 1 . . . . . . . . . . . 2 Weapon 1 | . 1 . . . . . . . . . . . . . . . . . . . . . . . . . . . . . Highest Loss Streak 2 | . 1 . . 1 . 1 . . . . . . . . 1 . 1 1 . . . . . . . . . . . 2 To Critical Strikes 1 | . . . . . . 1 . . . . . . . . . . . . . . . . . . . . . . . . Average Backups 2 | . . 1 1 . 1 1 1 1 2 1 2 2 2 1 2 1 1 1 1 3 3 3 3 3 3 3 2 3 2 3 Power . | . . . . . . . . . . . . . . . . . . . . . . . . . . . . . . . Propulsion . | . . . 1 . . . . . . . . . . . . . . . . . . . . . . . . . . . Utility 1 | . . . . . . . . . 1 . 1 2 2 1 2 1 1 1 1 2 2 2 2 2 2 3 2 3 1 2 Weapon . | . . . . . . . . . . . . . . . . . . . . . . . . . . . . . . . Tool/Special . | . . . . . . . . . . . . . . . . . . . . . . . . . . . . . . . Unused Backups 22 | . 1 . . . . . . . . . 2 . . . . . . . . 1 . . . . 1 . 6 8 . 3 Power 2 | . . . . . . . . . . . . . . . . . . . . . . . . . . . 1 . . 1 Propulsion 5 | . 1 . . . . . . . . . . . . . . . . . . 1 . . . . . . . 3 . . Utility 11 | . . . . . . . . . . . 1 . . . . . . . . . . . . . . . 4 5 . 1 Weapon 1 | . . . . . . . . . . . . . . . . . . . . . . . . . . . 1 . . . Tool/Special 3 | . . . . . . . . . . . 1 . . . . . . . . . . . . . 1 . . . . 1 Average Slot Usage (%) 97 | . 86 88 88 88 97 95 99 100 100 100 100 100 100 99 99 100 99 99 100 100 100 100 100 99 95 95 95 95 95 95 Engine 4 | . 11 11 11 15 12 5 5 5 5 5 5 5 5 5 5 4 4 4 4 4 4 4 4 4 . . . . . . Core 1 | . . . . . . 4 5 5 5 5 5 5 5 5 1 . . . . . . . . . . . . . . . Reactor 2 | . . . . . . . . . . . . . . . 3 4 4 4 4 4 4 4 4 4 4 4 4 4 5 8 Flight 25 | . 29 33 33 30 27 24 26 26 26 25 25 25 25 25 25 23 23 23 23 23 23 26 27 27 27 27 26 26 24 23 Device 25 | . 21 22 22 24 23 22 25 26 26 25 25 25 25 24 21 23 29 32 32 28 28 27 27 27 22 22 25 26 28 28 Processor 11 | . . . . . 2 4 9 10 10 14 15 15 15 15 15 14 12 9 9 14 14 13 13 13 17 18 17 17 16 15 Hackware 4 | . . . . . 8 10 5 5 5 5 5 5 5 5 5 4 4 4 4 4 4 4 4 4 4 4 4 4 4 4 Impact Weapon 4 | . 10 13 14 3 4 5 5 5 5 5 5 5 5 4 4 4 4 4 4 4 4 4 4 3 3 4 4 4 4 4 Slashing Weapon 12 | . . . 7 8 11 12 15 15 15 15 15 15 15 14 15 14 14 14 14 14 14 13 13 13 13 13 13 13 12 12 Peak Build Rating 201 | 8 18 10 17 27 53 79 82 83 83 88 103 101 101 105 111 115 130 127 120 122 121 134 129 131 162 159 178 184 200 201 Average Rating 106 | 4 9 9 15 24 46 60 81 82 83 87 96 101 101 100 105 111 120 118 119 120 121 128 128 129 153 157 168 181 192 198 On Entrance 97 | . 8 10 10 17 27 53 75 82 83 83 88 101 101 101 101 109 113 127 120 120 121 121 129 129 131 159 157 177 183 200 Avg Prop Armor Cover (%) 1 | . . . . . . . . . . . . . . . . . . . . . . . . . . . . . . 1 Naked Turns . | . . . . . . . . . . . . . . . . . . . . . . . . . . . . . . . Heaviest Build 81 | 10 12 12 13 22 32 38 42 42 41 41 47 43 43 46 46 51 51 52 52 47 47 51 51 51 59 58 64 62 80 81 Greatest Support 97 | 20 20 17 17 27 35 45 44 44 44 44 57 47 52 52 62 62 66 54 66 54 66 62 75 60 64 83 84 82 82 97 Greatest Overweight (x) 2 | . 2 . . . 1 1 . . . . . . . . 1 . . . . . . . . . . . . . . 1 Average Overweight (x) . | . . . . . . . . . . . . . . . . . . . . . . . . . . . . . . . Largest Inventory Capacity 4 | 1 1 1 1 1 2 2 2 2 2 2 2 2 2 2 2 2 2 2 3 3 3 3 3 3 3 3 3 4 4 4 Average Capacity 2 | 1 1 1 1 1 1 2 2 2 2 2 2 2 2 2 2 2 2 2 2 3 3 3 3 3 3 3 3 3 4 4 Most Carried 4 | . 1 1 1 1 2 2 2 2 2 2 2 2 2 2 2 2 2 2 3 3 3 3 3 3 3 3 3 4 4 4 Average Carried 2 | . . . 1 . 1 1 1 1 2 1 2 2 2 1 1 1 1 1 1 2 3 3 2 3 2 3 2 3 3 3 Final Capacity 4 | 1 1 1 1 1 2 2 2 2 2 2 2 2 2 2 2 2 2 2 3 3 3 3 3 3 3 3 3 4 4 4 Final Carried 4 | . 1 1 1 . 2 2 2 2 2 2 2 2 2 2 2 1 2 2 3 3 3 3 3 3 3 3 3 4 4 2 Class Distribution -------------------- 47% | Hacker-Ninja 36% | Hacker-Scout 6% | Hacker-Sprinter 4% | Scavenger-Mutant 3% | Scavenger-Ninja Dominant Class ---------------- Scavenger-Mutant | -10/Materials Scavenger-Mutant | -10/Mines Gladiator | -10/Exiles Scavenger-Ninja | -9/Mines Hacker-Scout | -8/Materials Hacker-Scout | -7/Factory Hacker-Sprinter | -7/Lower Caves Hacker-Sprinter | -7/Lower Caves Hacker-Sprinter | -7/Data Miner Hacker-Scout | -6/Proximity Caves Hacker-Scout | -6/Factory Hacker-Scout | -6/Lower Caves Hacker-Scout | -6/Lower Caves Hacker-Scout | -6/Zion Hacker-Scout | -6/Deep Caves Hacker-Scout | -5/Proximity Caves Hacker-Ninja | -5/Factory Hacker-Ninja | -5/Upper Caves Hacker-Ninja | -5/Upper Caves Hacker-Ninja | -5/Zhirov Hacker-Ninja | -4/Proximity Caves Hacker-Ninja | -4/Factory Hacker-Ninja | -4/Upper Caves Hacker-Ninja | -4/Upper Caves Hacker-Ninja | -4/Warlord Hacker-Ninja | -3/Proximity Caves Hacker-Ninja | -3/Research Hacker-Ninja | -2/Research Hacker-Ninja | -1/Access Hacker-Ninja | -1/Command Resources | -11 -10 -10 -10 -9 -8 -7 -7 -7 -7 -6 -6 -6 -6 -6 -6 -5 -5 -5 -5 -5 -4 -4 -4 -4 -4 -3 -3 -2 -1 -1 ----------- Run | Yrd Mat Min Exi Min Mat Fac Low Low Dat Pro Fac Low Low Zio Dee Pro Fac Upp Upp Zhi Pro Fac Upp Upp War Pro Res Res Acc Com Matter Collected 3284 | 216 204 20 . 80 220 241 132 43 . 20 287 30 20 140 220 40 202 10 20 . 40 118 69 102 130 80 220 240 70 70 Remotely . | . . . . . . . . . . . . . . . . . . . . . . . . . . . . . . . Salvage Created 25910 | 120 898 6 . 147 1158 800 147 378 . 1021 1337 606 113 . 717 411 2371 952 884 54 628 751 2212 738 . 2456 1974 1405 1581 2045 Parts 719 | 7 41 . . 11 41 21 3 12 . 35 48 7 5 . 21 10 52 23 19 2 21 21 46 26 . 67 56 24 49 51 Haulers Intercepted 22 | . 2 . . . 5 3 . . . . 1 . . . . . 5 . . . . 2 . 1 . . 2 . 1 . Recyclers Shooed 1 | . . . . . . . . . . . . . . . . . . . . . . . . . . . 1 . . . Parts Field Recycled . | . . . . . . . . . . . . . . . . . . . . . . . . . . . . . . . Retrieved Matter . | . . . . . . . . . . . . . . . . . . . . . . . . . . . . . . . Parts Self-Destructed 153 | . . . . . . . . 5 . 26 . 5 5 . . 3 . 12 13 . 12 . 15 19 . 38 . . . . Prevented 114 | . . . . . . . . . . 10 . 2 . . . 7 . 11 11 . 9 . 31 7 . 26 . . . . Parts Restored . | . . . . . . . . . . . . . . . . . . . . . . . . . . . . . . . Kills | -11 -10 -10 -10 -9 -8 -7 -7 -7 -7 -6 -6 -6 -6 -6 -6 -5 -5 -5 -5 -5 -4 -4 -4 -4 -4 -3 -3 -2 -1 -1 ------- Run | Yrd Mat Min Exi Min Mat Fac Low Low Dat Pro Fac Low Low Zio Dee Pro Fac Upp Upp Zhi Pro Fac Upp Upp War Pro Res Res Acc Com Combat Hostiles Destroyed 418 | . 25 . . 5 21 9 1 7 . 26 22 8 4 . 15 12 29 17 17 . 14 7 31 15 . 42 20 18 20 33 Melee 264 | . 10 . . 4 16 6 1 5 . 16 15 6 3 . 10 8 25 10 9 . 9 2 12 11 . 28 13 8 11 26 Guns 3 | . 3 . . . . . . . . . . . . . . . . . . . . . . . . . . . . . Cannons 2 | . . . . . . . . . . . . . . . . . 1 . . . . . . . . 1 . . . . AOE 1 | . 1 . . . . . . . . . . . . . . . . . . . . . . . . . . . . . Classes Destroyed 27 | 2 8 . . 2 . 3 1 . . 1 1 . . . 2 . 1 1 . . 1 . . . . 2 1 1 . . Worker 6 | . 2 . . . 2 . . . . . . . . . . . 1 . . . . . . . . . 1 . . . Builder 3 | . 2 . . . . . . . . . . . . . . . . . . . . . . . . . 1 . . . Tunneler 4 | 2 . . . 1 . . . . . . . . . . . . 1 . . . . . . . . . . . . . Hauler 22 | . 2 . . . 5 3 . . . . 1 . . . . . 5 . . . . 2 . 1 . . 2 . 1 . Recycler 7 | 1 . . . . 1 1 . . . . . . . . . . 3 . . . . . . . . . . 1 . . Minesweeper 1 | . . . . . . . . . . . . . . . . . . 1 . . . . . . . . . . . . Mechanic 1 | . . . . . . . . . . . . . . . . . 1 . . . . . . . . . . . . . Operator 23 | . 3 . . . 3 3 . . . . 3 . . . . . 2 . . . . 2 . . . . 3 1 2 1 Drone 7 | . . . . . . . . . . 2 . . . . . 2 1 . . . 2 . . . . . . . . . Watcher 50 | . 3 . . . 5 5 . . . . 7 . . . . . 2 . . . . 4 . . . 2 10 3 5 4 Swarmer 74 | . 6 . . . 8 . . . . 5 . . 4 . . 2 . 2 3 . 1 . 1 . . 11 2 9 . 20 Cutter 8 | . . . . . . . . . . . 3 . . . . . . . . . . . . . . . 1 . . 4 Saboteur 4 | . . . . . . . . . . . . . . . . . . . . . . . . . . 4 . . . . Grunt 121 | . 17 . . 2 5 2 . . . 10 5 6 . . . 5 2 7 9 . 3 3 15 9 . 11 . 1 9 . Brawler 18 | . . . . . . 1 . . . 1 . . . . . . 1 5 . . . . 5 3 . 2 . . . . Duelist 11 | . . . . 1 . . . . . 3 . 1 . . . . . . . . 2 . 2 1 . 1 . . . . Protector 1 | . . . . . . . . . . . . . . . . . . . . . . . . . . 1 . . . . Sentry 76 | . . . . 2 8 1 . 1 . 3 8 . . . . 1 6 3 2 . 2 4 3 2 . 6 8 6 6 4 Hunter 28 | . . . . . . 1 . 1 . 2 2 1 . . . 2 3 . 2 . 2 . 4 . . 6 . 2 . . Programmer 44 | . . . . . . 4 . . . . 4 . . . . . 15 . 2 . 2 . . . . 1 9 . 4 3 Heavy 3 | . . . . . . . . . . . . . . . . . . . . . . . . . . . 1 . 1 1 Behemoth 1 | . . . . . . . . . . . . . . . . . . . . . . . . . . . . 1 . . Armor Guard 1 | . . . . . . . . . . . . . . . . . 1 . . . . . . . . . . . . . Subdweller 2 | . 2 . . . . . . . . . . . . . . . . . . . . . . . . . . . . . Z-Light 8 | . . . . . . . . . . . . . . . 8 . . . . . . . . . . . . . . . Tinkerer 1 | . . . . . . . . . . . . . . . . . . . . . 1 . . . . . . . . . Assembled 6 | . . . . . . . . . . . . . . . 6 . . . . . . . . . . . . . . . Thug 1 | . . . . . . . . . . . . . . . . . . . . . . . 1 . . . . . . . Savage 4 | . . . . . . . . 1 . . . . . . . . . . . . . . 3 . . . . . . . Butcher 3 | . . . . . . . . 3 . . . . . . . . . . . . . . . . . . . . . . Mutant 3 | . . . . . . . 1 1 . . . . . . . . . . . . . . 1 . . . . . . . Best Kill Streak 18 | 2 5 . . 3 5 4 1 4 . 6 4 4 4 . 6 3 6 7 6 . 7 3 11 8 . 8 8 6 9 18 Combat Bots Only 18 | . 4 . . 3 4 3 1 4 . 6 3 4 4 . 6 3 4 7 6 . 7 3 11 8 . 8 5 6 9 18 Max Kills in Single Turn 3 | 1 2 . . 1 2 1 1 1 . 1 1 1 2 . 1 1 1 1 1 . 2 1 1 1 . 2 1 1 1 3 Gunslinging . | . . . . . . . . . . . . . . . . . . . . . . . . . . . . . . . Exploded 1 | . 1 . . . . . . . . . . . . . . . . . . . . . . . . . . . . . Melee 3 | . 1 . . 1 2 1 1 1 . 1 1 1 2 . 1 1 1 1 1 . 2 1 1 1 . 2 1 1 1 3 Uniques/NPCs Destroyed 4 | . . . . . . . . . . . . . . . 1 . 1 . . . . . . . . . . . 1 1 Z-Imprinter (-6/Deep Caves) CL-0N3 (-5/Factory) DW-4LL (-1/Access) MAIN.C Shell (-1/Command) Combat | -11 -10 -10 -10 -9 -8 -7 -7 -7 -7 -6 -6 -6 -6 -6 -6 -5 -5 -5 -5 -5 -4 -4 -4 -4 -4 -3 -3 -2 -1 -1 -------- Run | Yrd Mat Min Exi Min Mat Fac Low Low Dat Pro Fac Low Low Zio Dee Pro Fac Upp Upp Zhi Pro Fac Upp Upp War Pro Res Res Acc Com Hostile Shots Fired 1217 | . 119 1 . 14 57 34 4 15 . 35 88 6 4 . 37 9 94 9 40 . 26 19 92 29 . 75 77 45 102 186 Missed 687 | . 37 1 . 4 17 17 1 10 . 15 49 3 1 . 20 6 48 6 18 . 18 12 57 11 . 65 63 29 69 110 Hits 530 | . 82 . . 10 40 17 3 5 . 20 39 3 3 . 17 3 46 3 22 . 8 7 35 18 . 10 14 16 33 76 Melee 38 | . . . . 3 . 3 . 1 . 4 4 . . . . . 1 1 . . . . 12 5 . . 1 . . 3 Projectile 492 | . 82 . . 7 40 14 3 4 . 16 35 3 3 . 17 3 45 2 22 . 8 7 23 13 . 10 13 16 33 73 AOE 1 | . . . . . . . . . . . . . . . . . . . . . . . . . . . . 1 . . Critical Strikes 22 | . 2 . . . . 1 . 1 . . . . . . . . 4 . 1 . . . 4 1 . . . . . 8 Part Disruptions 3 | . . . . . . . . . . . . . . . . . 1 . . . . . . . . 1 . . . 1 Damage Taken 12873 | . 977 . . 194 783 273 56 130 . 410 524 53 49 . 512 62 1433 125 388 . 169 159 1313 533 . 514 482 439 791 2504 Core 10437 | . 801 . . 163 639 197 52 110 . 328 414 45 41 . 366 28 1176 99 322 . 138 134 1074 452 . 406 402 351 647 2052 Absorbed by Shields . | . . . . . . . . . . . . . . . . . . . . . . . . . . . . . . . Redirected to Core 8457 | . 566 . . 117 508 166 14 72 . 294 362 28 25 . 339 28 952 99 240 . 110 94 883 295 . 406 293 324 535 1707 Redirected to Shielding 53 | . . . . . . . . . . . . . . . 27 26 . . . . . . . . . . . . . . Core Remaining (%) 96 | 100 . . . 100 90 . . . . 100 . . . . . 100 . . . . 97 . . . . 100 100 84 . . Volleys Fired 122 | 7 112 . . 1 . . . . . . . . . . . . . . . . . . . . . . . . . 2 Largest 2 | 2 2 . . 1 . . . . . . . . . . . . . . . . . . . . . . . . . 1 Hottest 113 | 80 80 . . 20 . . . . . . . . . . . . . . . . . . . . . . . . . 113 Shots Fired 140 | 14 123 . . 1 . . . . . . . . . . . . . . . . . . . . . . . . . 2 Gun 137 | 14 123 . . . . . . . . . . . . . . . . . . . . . . . . . . . . . Cannon 2 | . . . . . . . . . . . . . . . . . . . . . . . . . . . . . . 2 Launcher . | . . . . . . . . . . . . . . . . . . . . . . . . . . . . . . . Special 1 | . . . . 1 . . . . . . . . . . . . . . . . . . . . . . . . . . Kinetic . | . . . . . . . . . . . . . . . . . . . . . . . . . . . . . . . Thermal 3 | . . . . 1 . . . . . . . . . . . . . . . . . . . . . . . . . 2 Explosive . | . . . . . . . . . . . . . . . . . . . . . . . . . . . . . . . Electromagnetic 137 | 14 123 . . . . . . . . . . . . . . . . . . . . . . . . . . . . . Robot Hit Streak 7 | 7 5 . . . . . . . . . . . . . . . . . . . . . . . . . . . . . Robot Miss Streak 3 | 3 2 . . . . . . . . . . . . . . . . . . . . . . . . . . . . . Penetration Max . | . . . . . . . . . . . . . . . . . . . . . . . . . . . . . . . Secondary Targets . | . . . . . . . . . . . . . . . . . . . . . . . . . . . . . . . Shots Hit Robots 1341 | 9 90 . . 15 74 48 4 17 . 53 66 21 5 . 32 21 126 38 34 8 24 32 94 42 . 112 94 57 106 119 Core Hits 315 | 3 19 . . 4 21 8 1 4 . 13 15 7 3 . 8 4 34 8 5 2 4 6 16 10 . 30 21 11 23 35 Critical Kills 33 | . 3 . . . 2 1 . . . 1 2 1 1 . . . 2 . 1 . 2 1 3 1 . 4 2 1 1 4 Critical Parts Destroyed 240 | . 13 . . 1 8 9 . 3 . 6 8 3 . . 3 3 28 7 7 1 8 7 22 6 . 16 24 16 17 24 Critical Strikes 328 | . 16 . . 2 13 11 . 3 . 9 11 5 1 . 4 4 35 10 9 1 11 10 33 7 . 26 31 20 23 33 Smash 293 | . 16 . . 1 11 10 . 3 . 7 10 5 1 . 4 3 31 8 8 1 10 9 28 7 . 22 29 19 20 30 Sever 35 | . . . . 1 2 1 . . . 2 1 . . . . 1 4 2 1 . 1 1 5 . . 4 2 1 3 3 Melee Attacks 2264 | . 119 2 . 15 155 121 8 25 . 69 156 24 6 26 43 27 264 48 51 9 35 67 131 50 . 157 221 127 154 154 Impact 1251 | . 118 2 . 1 80 79 6 17 . 38 88 11 3 17 23 16 140 23 24 3 20 37 67 23 . 89 115 65 75 71 Slashing 1012 | . . . . 14 75 42 2 8 . 31 68 13 3 9 20 11 124 25 27 6 15 30 64 27 . 68 106 62 79 83 Piercing 1 | . 1 . . . . . . . . . . . . . . . . . . . . . . . . . . . . . Sneak Attacks 296 | . 5 . . 2 25 12 . 4 . 11 19 1 . . . 6 34 18 8 . 11 9 32 4 . 42 19 5 18 11 Combat Hostiles 144 | . 2 . . 1 12 5 . 4 . 6 12 1 . . . 6 19 5 4 . 3 6 9 3 . 22 8 2 9 5 Follow-up Attacks 447 | . . . . 1 14 11 . 4 . 22 17 10 2 . 11 7 44 16 12 5 6 12 33 19 . 36 35 22 48 60 Damage Inflicted 102239 | 144 2638 . . 686 5274 3093 241 1236 . 4135 5593 1541 352 . 2532 1924 10719 3743 3145 896 2470 2763 8599 3119 . 10612 7300 4264 7585 7635 Guns 239 | 117 122 . . . . . . . . . . . . . . . . . . . . . . . . . . . . . Cannons . | . . . . . . . . . . . . . . . . . . . . . . . . . . . . . . . Explosions 287 | 27 260 . . . . . . . . . . . . . . . . . . . . . . . . . . . . . Melee 101713 | . 2256 . . 686 5274 3093 241 1236 . 4135 5593 1541 352 . 2532 1924 10719 3743 3145 896 2470 2763 8599 3119 . 10612 7300 4264 7585 7635 Ramming . | . . . . . . . . . . . . . . . . . . . . . . . . . . . . . . . Kinetic . | . . . . . . . . . . . . . . . . . . . . . . . . . . . . . . . Thermal 287 | 27 260 . . . . . . . . . . . . . . . . . . . . . . . . . . . . . Explosive . | . . . . . . . . . . . . . . . . . . . . . . . . . . . . . . . Electromagnetic 239 | 117 122 . . . . . . . . . . . . . . . . . . . . . . . . . . . . . Impact 71903 | . 2253 . . 21 2871 2567 241 1014 . 2670 4470 1056 239 . 1936 1524 7923 2516 2445 367 2019 1817 6391 1985 . 8040 5275 2922 4748 4593 Slashing 29807 | . . . . 665 2403 526 . 222 . 1465 1123 485 113 . 596 400 2796 1227 700 529 451 946 2208 1134 . 2572 2025 1342 2837 3042 Piercing 3 | . 3 . . . . . . . . . . . . . . . . . . . . . . . . . . . . . Highest Corruption 4 | . . . . . . 4 3 3 . . 1 . . . . . 3 . . . . 2 2 2 2 . . . 1 2 Average Corruption 2 | . . . . . . 2 3 2 . . 1 . . . . . 2 . . . . 2 2 2 2 . . . 1 1 Corruption Purged 18 | . . . . . . 5 . 3 . . 1 . . . . . 6 . . . . . . . . . . . 2 1 Corruption Blocked . | . . . . . . . . . . . . . . . . . . . . . . . . . . . . . . . Effects 96 | . . . . . . 15 14 2 . . 7 . . . . . 8 . . . . 10 18 18 1 . . . 3 . Message Errors 25 | . . . . . . 3 4 . . . 4 . . . . . 3 . . . . 3 4 4 . . . . . . Matter Fused 27 | . . . . . . 4 4 1 . . 1 . . . . . 3 . . . . 3 6 4 . . . . 1 . Heat Flow Errors 15 | . . . . . . 1 3 . . . 2 . . . . . 1 . . . . 1 1 5 . . . . 1 . Energy Discharges 10 | . . . . . . 2 2 . . . . . . . . . 1 . . . . 1 3 1 . . . . . . Data Loss (minor) 10 | . . . . . . 4 1 . . . . . . . . . . . . . . 2 2 1 . . . . . . Data Loss (major) 7 | . . . . . . 1 . . . . . . . . . . . . . . . . 2 3 1 . . . . . Alerts 2 | . . . . . . . . 1 . . . . . . . . . . . . . . . . . . . . 1 . Overload Shots . | . . . . . . . . . . . . . . . . . . . . . . . . . . . . . . . Overflow Damage 37725 | . 646 . . 111 1557 1418 21 379 . 1148 2374 508 94 . 986 967 4881 1797 1330 173 1325 766 3085 971 . 3177 3220 1901 2105 2785 Projectiles 119 | . . . . . . . . . . . . . . . 19 . . . 5 . . . 25 . . . . . . 70 Explosions 52 | . 52 . . . . . . . . . . . . . . . . . . . . . . . . . . . . . Melee 37554 | . 594 . . 111 1557 1418 21 379 . 1148 2374 508 94 . 967 967 4881 1797 1325 173 1325 766 3060 971 . 3177 3220 1901 2105 2715 Knockbacks 205 | . 13 . . . 4 7 . 2 . 7 15 . 1 . 9 2 19 7 11 1 5 3 24 1 . 18 19 8 21 8 Impact 191 | . 12 . . . 4 7 . 2 . 7 15 . 1 . 8 2 18 6 10 1 5 3 21 1 . 17 18 8 17 8 Kinetic . | . . . . . . . . . . . . . . . . . . . . . . . . . . . . . . . Secondary 14 | . 1 . . . . . . . . . . . . . 1 . 1 1 1 . . . 3 . . 1 1 . 4 . Self-Inflicted Damage 157 | . 5 . . . . . . . . . . . . . . . . . . . . . . . . . . . . 152 Shots 2 | . 1 . . . . . . . . . . . . . . . . . . . . . . . . . . . . 1 Rammed . | . . . . . . . . . . . . . . . . . . . . . . . . . . . . . . . Targets Rammed . | . . . . . . . . . . . . . . . . . . . . . . . . . . . . . . . Kicked . | . . . . . . . . . . . . . . . . . . . . . . . . . . . . . . . Crushed . | . . . . . . . . . . . . . . . . . . . . . . . . . . . . . . . Highest Temperature 418 | . 20 . . . 6 166 186 . . 2 247 . . . 324 58 301 . 61 . 57 222 206 230 . . . . 142 418 Average Temperature 52 | . 9 . . . 2 17 95 . . 2 92 . . . 91 3 63 . 25 . 42 148 80 104 . . . . 93 136 Received Heat Transfer 1730 | . 432 . . 39 126 15 20 . . 36 63 18 . . 153 18 149 21 72 . 30 39 157 54 . 9 27 18 144 90 Effects 9 | . . . . . . . . . . . . . . . 3 . 2 . . . . . . . . . . . . 4 Energy Bleed 1 | . . . . . . . . . . . . . . . . . . . . . . . . . . . . . . 1 Interference 5 | . . . . . . . . . . . . . . . 3 . 2 . . . . . . . . . . . . . Damage (major) 3 | . . . . . . . . . . . . . . . . . . . . . . . . . . . . . . 3 Siege Activations . | . . . . . . . . . . . . . . . . . . . . . . . . . . . . . . . Martial Activations . | . . . . . . . . . . . . . . . . . . . . . . . . . . . . . . . Shielding Activations . | . . . . . . . . . . . . . . . . . . . . . . . . . . . . . . . Robots Disrupted 2 | . . . . . . . . . . . . . . . . . . . . . . . . . . . 1 1 . . Combat Hostiles 2 | . . . . . . . . . . . . . . . . . . . . . . . . . . . 1 1 . . Robots Corrupted 184 | . 14 . . 1 10 6 . 2 . 10 7 2 1 . 5 4 5 7 9 . 5 7 20 4 . 16 14 13 13 9 Combat Hostiles 147 | . 11 . . 1 5 3 . 2 . 10 7 2 1 . 5 4 3 6 8 . 5 5 19 4 . 13 7 10 9 7 Parts Fried 339 | 2 16 . . . 21 12 . 4 . 12 18 12 . . 15 16 25 8 6 . 9 18 23 9 . 30 31 18 15 19 Impact Corruptions 790 | . 29 . . 1 39 35 2 8 . 31 55 12 3 . 19 17 98 27 26 3 25 14 59 15 . 61 69 39 46 57 Robots Melted . | . . . . . . . . . . . . . . . . . . . . . . . . . . . . . . . Combat Hostiles . | . . . . . . . . . . . . . . . . . . . . . . . . . . . . . . . Parts Melted 1 | . 1 . . . . . . . . . . . . . . . . . . . . . . . . . . . . . Heat Transferred 250 | 50 200 . . . . . . . . . . . . . . . . . . . . . . . . . . . . . Parts Sabotaged . | . . . . . . . . . . . . . . . . . . . . . . . . . . . . . . . Parts Stolen . | . . . . . . . . . . . . . . . . . . . . . . . . . . . . . . . Parts Stripped . | . . . . . . . . . . . . . . . . . . . . . . . . . . . . . . . Power Chain Reactions 1 | 1 . . . . . . . . . . . . . . . . . . . . . . . . . . . . . . Alert | -11 -10 -10 -10 -9 -8 -7 -7 -7 -7 -6 -6 -6 -6 -6 -6 -5 -5 -5 -5 -5 -4 -4 -4 -4 -4 -3 -3 -2 -1 -1 ------- Run | Yrd Mat Min Exi Min Mat Fac Low Low Dat Pro Fac Low Low Zio Dee Pro Fac Upp Upp Zhi Pro Fac Upp Upp War Pro Res Res Acc Com Maximum Alert Level 4 | . 3 1 . . 2 2 . . . . 2 . . . . . 1 . . . . . . . . . 3 3 3 4 Low Security (%) 36 | 100 15 . . 100 56 4 . . . . 70 . . . . . 45 . . . . 100 . . . . 13 . . . Level 1 34 | . 24 100 . . 24 74 . . . . 22 . . . . . 54 . . . . . . . . . 50 27 . . Level 2 21 | . 49 . . . 18 20 . . . . 6 . . . . . . . . . . . . . . . 32 62 48 4 Level 3 5 | . 10 . . . . . . . . . . . . . . . . . . . . . . . . . 3 9 51 37 Level 4 1 | . . . . . . . . . . . . . . . . . . . . . . . . . . . . . . 58 Level 5 . | . . . . . . . . . . . . . . . . . . . . . . . . . . . . . . . High Security . | . . . . . . . . . . . . . . . . . . . . . . . . . . . . . . . Max Security . | . . . . . . . . . . . . . . . . . . . . . . . . . . . . . . . Peak Influence 1586 | 10 806 312 . 71 621 501 . . . . 448 . . . . . 389 . . . . 173 . . . . 761 1009 1080 1586 Initial 681 | . . 312 . . 24 282 . . . . 386 . . . . . 110 . . . . 150 . . . . 425 426 602 681 Average 315 | . 407 257 . 9 198 322 . . . . 163 . . . . . 200 . . . . 103 . . . . 375 511 739 1131 Influence Increases 16716 | 15 1368 45 . 205 1413 1523 . 50 . 705 1085 200 90 . . 330 1594 355 398 5 320 608 615 335 115 934 1213 1149 843 1203 Destroy 0b10 Robot/C 7940 | . 460 . . 100 420 200 . 40 . 480 440 160 80 . . 200 580 340 360 . 240 140 520 300 100 820 400 500 400 660 Destroy 0b10 Robot/NC 675 | 15 60 . . 5 80 60 . . . 20 55 10 . . . 10 80 5 . 5 15 40 10 5 . 25 85 25 40 25 Destroy Leader 1504 | . 130 . . 10 130 86 . 10 . 40 176 30 10 . . 30 184 10 20 . 20 62 40 . . 40 154 116 122 84 Allied During Kill 18 | . . . . . . . . . . . . . . . . . . . 3 . . . . . . 4 . 7 4 . Trap Triggered on 0b10 20 | . . . . . 20 . . . . . . . . . . . . . . . . . . . . . . . . . Successful Hack 442 | . 16 . . . 21 69 . . . . 69 . . . . . 48 . . . . 31 . . . . 46 . 70 72 Disable Machine 3465 | . 480 30 . 75 645 960 . . . . 135 . . . . . 540 . . . . 105 . . . . 405 75 . 15 Anti-Garrison Action 200 | . . . . . . . . . . . . . . . . . . . . . . . . . . . . 150 . 50 Destroy Structure 727 | . 162 . . . 22 13 . . . . 30 . . . . . 42 . . . . 20 . . . . 48 201 42 147 Advance Influence 300 | . . . . . . . . . . . 150 . . . . . . . . . . 150 . . . . . . . . Partial Spotted 450 | . 15 15 . 15 75 75 . . . . 15 . . . . . 45 . . . . 30 . . . . 45 30 75 15 Lose Combat Pursuer 975 | . 45 . . . . 60 . . . 165 15 . . . . 90 75 . 15 . 45 30 45 30 15 45 30 45 90 135 Influence Decreases 15146 | 15 565 631 217 142 856 1796 347 50 . 329 1298 297 86 70 . 154 1520 549 283 176 320 608 311 493 261 304 1085 902 783 698 Entered New Map 3369 | . . 491 217 . 39 338 130 . . . 140 61 13 70 . . 66 93 11 171 . . . 59 146 . 205 332 403 384 Time Decay 8780 | 15 555 140 . 132 667 688 217 50 . 329 558 236 73 . . 154 664 446 272 5 320 350 311 434 56 304 580 550 380 294 Lost Part 70 | . 10 . . 10 . 10 . . . . . . . . . . 10 10 . . . . . . . . . . . 20 Lost Ally 269 | . . . . . . 10 . . . . . . . . . . 180 . . . . . . . 59 . . 20 . . Purge Threat 2658 | . . . . . 150 750 . . . . 600 . . . . . 600 . . . . 258 . . . . 300 . . . Squads Dispatched 71 | . 6 . . . 3 9 . . . . 11 . . . . . 11 . 1 . . 2 . . . 1 12 2 7 6 Investigation 15 | . 3 . . . . 1 . . . . 5 . . . . . 1 . 1 . . 1 . . . 1 . 1 1 . Extermination 32 | . . . . . . 6 . . . . 5 . . . . . 7 . . . . 1 . . . . 7 . 3 3 Reinforcement 14 | . 3 . . . 2 1 . . . . 1 . . . . . 3 . . . . . . . . . 2 1 1 . Assault 9 | . . . . . . 1 . . . . . . . . . . . . . . . . . . . . 3 . 2 3 Garrison 1 | . . . . . 1 . . . . . . . . . . . . . . . . . . . . . . . . . Intercept . | . . . . . . . . . . . . . . . . . . . . . . . . . . . . . . . Searches Triggered . | . . . . . . . . . . . . . . . . . . . . . . . . . . . . . . . Unchained Authorized 3 | . . . . . . . . . . . . . . . . . 1 . . . . . . . . . 1 . 1 . Construction Impeded . | . . . . . . . . . . . . . . . . . . . . . . . . . . . . . . . Haulers Reinforced 1 | . . . . . . 1 . . . . . . . . . . . . . . . . . . . . . . . . Active Scanning Responses . | . . . . . . . . . . . . . . . . . . . . . . . . . . . . . . . Cargo Convoy Interrupts 1 | . . . . . . . . . . . . . . . . . 1 . . . . . . . . . . . . . Stealth | -11 -10 -10 -10 -9 -8 -7 -7 -7 -7 -6 -6 -6 -6 -6 -6 -5 -5 -5 -5 -5 -4 -4 -4 -4 -4 -3 -3 -2 -1 -1 --------- Run | Yrd Mat Min Exi Min Mat Fac Low Low Dat Pro Fac Low Low Zio Dee Pro Fac Upp Upp Zhi Pro Fac Upp Upp War Pro Res Res Acc Com Distress Signals 12 | . 1 . . . . 1 . . . . . . . . . . 2 . . . . . . . . . . 8 . . Communications Jammed 49 | . . . . . . . . . . . . . . . . . 3 . . . 1 1 . . 4 8 8 12 4 8 Distress Signals 35 | . . . . . . . . . . . . . . . . . . . . . . 1 . . 4 8 3 12 3 4 Times Spotted 485 | . 48 2 . 6 22 18 1 7 . 31 20 7 4 . 15 13 31 10 15 . 9 13 27 16 5 25 32 27 33 48 Peak Tracking Total 11 | . 5 2 . 3 5 4 1 4 . 8 3 4 4 . 4 4 3 2 3 . 2 2 3 9 7 3 4 4 5 11 Tactical Retreats 55 | . 12 1 . 1 . 2 . 1 . 5 1 . . . . 2 5 . 1 . 2 2 3 1 1 2 2 2 4 5 ECM-based Alert Blocks 22 | . 17 2 . 3 . . . . . . . . . . . . . . . . . . . . . . . . . . Traps | -11 -10 -10 -10 -9 -8 -7 -7 -7 -7 -6 -6 -6 -6 -6 -6 -5 -5 -5 -5 -5 -4 -4 -4 -4 -4 -3 -3 -2 -1 -1 ------- Run | Yrd Mat Min Exi Min Mat Fac Low Low Dat Pro Fac Low Low Zio Dee Pro Fac Upp Upp Zhi Pro Fac Upp Upp War Pro Res Res Acc Com Traps Triggered 10 | . 5 . . . . 2 . . . . 1 . . . . . 2 . . . . . . . . . . . . . Indirectly . | . . . . . . . . . . . . . . . . . . . . . . . . . . . . . . . Trap Hack Attempts . | . . . . . . . . . . . . . . . . . . . . . . . . . . . . . . . Triggered . | . . . . . . . . . . . . . . . . . . . . . . . . . . . . . . . Disarmed . | . . . . . . . . . . . . . . . . . . . . . . . . . . . . . . . Reprogrammed 4 | . . . . . 4 . . . . . . . . . . . . . . . . . . . . . . . . . Reused 2 | . . . . . 2 . . . . . . . . . . . . . . . . . . . . . . . . . Traps Extracted . | . . . . . . . . . . . . . . . . . . . . . . . . . . . . . . . Installed . | . . . . . . . . . . . . . . . . . . . . . . . . . . . . . . . Triggered 2 | . . . . . 2 . . . . . . . . . . . . . . . . . . . . . . . . . Machines | -11 -10 -10 -10 -9 -8 -7 -7 -7 -7 -6 -6 -6 -6 -6 -6 -5 -5 -5 -5 -5 -4 -4 -4 -4 -4 -3 -3 -2 -1 -1 ---------- Run | Yrd Mat Min Exi Min Mat Fac Low Low Dat Pro Fac Low Low Zio Dee Pro Fac Upp Upp Zhi Pro Fac Upp Upp War Pro Res Res Acc Com Machines Disabled 250 | . 32 2 . 5 43 64 1 . . . 9 . . 4 1 . 36 . 3 1 1 7 1 . . 4 27 6 . 3 Max in Single Turn 4 | . 4 1 . 1 1 1 1 . . . 1 . . 1 1 . 1 . 1 1 1 1 1 . . 1 1 1 . 2 Garrison Access 15 | . . . . . 1 3 . . . . 3 . . . . . 2 . . . . 2 . . . . . 2 2 . Phase Generator 1 | . . . . . . . . . . . . . . . . . . . . . . . . . . . . . . 1 Machines Repaired . | . . . . . . . . . . . . . . . . . . . . . . . . . . . . . . . Machines Dismantled 64 | . . . . 5 20 39 . . . . . . . . . . . . . . . . . . . . . . . . Machines Sabotaged . | . . . . . . . . . . . . . . . . . . . . . . . . . . . . . . . Overloaded Fab Kills . | . . . . . . . . . . . . . . . . . . . . . . . . . . . . . . . Hacking | -11 -10 -10 -10 -9 -8 -7 -7 -7 -7 -6 -6 -6 -6 -6 -6 -5 -5 -5 -5 -5 -4 -4 -4 -4 -4 -3 -3 -2 -1 -1 --------- Run | Yrd Mat Min Exi Min Mat Fac Low Low Dat Pro Fac Low Low Zio Dee Pro Fac Upp Upp Zhi Pro Fac Upp Upp War Pro Res Res Acc Com Machines Accessed 170 | . 8 . 1 . 16 19 1 . 4 . 33 1 . . . . 24 1 2 8 . 15 . . 8 4 11 2 8 4 Terminals 83 | . 6 . . . 12 9 . . . . 17 1 . . . . 12 . 1 . . 7 . . . 2 6 . 6 4 Fabricators 12 | . . . . . . 2 . . . . 3 . . . . . 4 . . . . 1 . . . 1 1 . . . Repair Stations 3 | . . . . . . . . . . . 1 . . . . . 2 . . . . . . . . . . . . . Recycling Units 25 | . 2 . . . 2 3 . . . . 7 . . . . . 4 . . . . 4 . . . 1 2 . . . Scanalyzers 6 | . . . . . 1 2 . . . . 1 . . . . . . . . . . 1 . . . . . 1 . . Garrison Access 17 | . . . . . 1 3 . . . . 4 . . . . . 2 . . . . 2 . . . . 2 1 2 . Total Hacks 619 | . 23 . 1 . 52 77 1 . 28 . 118 1 . . . . 71 1 6 41 . 60 . . 11 20 51 4 37 16 Successful 392 | . 11 . 1 . 27 43 1 . 28 . 76 1 . . . . 44 1 6 41 . 45 . . 11 13 22 . 14 7 Failed 225 | . 12 . . . 24 33 . . . . 42 . . . . . 27 . . . . 15 . . . 7 29 4 23 9 Catastrophic 26 | . 2 . . . 2 5 . . . . 2 . . . . . 3 . . . . 1 . . . 2 3 3 2 1 Database Lockouts 2 | . . . . . 1 1 . . . . . . . . . . . . . . . . . . . . . . . . Manual 294 | . 21 . 1 . 43 46 . . . . 50 . . . . . 44 . . . . 26 . . 1 3 24 1 21 13 Terminals 367 | . 20 . . . 46 55 . . . . 70 1 . . . . 44 . 5 . . 34 . . . 8 35 . 33 16 Fabricators 61 | . . . . . . 9 . . . . 16 . . . . . 14 . . . . 10 . . . 5 7 . . . Repair Stations 3 | . . . . . . . . . . . 1 . . . . . 2 . . . . . . . . . . . . . Recycling Units 56 | . 3 . . . 2 3 . . . . 20 . . . . . 9 . . . . 9 . . . 7 3 . . . Scanalyzers 13 | . . . . . 3 5 . . . . 3 . . . . . . . . . . 1 . . . . . 1 . . Garrison Access 35 | . . . . . 1 5 . . . . 8 . . . . . 2 . . . . 6 . . . . 6 3 4 . Terminal Hacks 198 | . . . 1 . 10 19 1 . 28 . 27 1 . . . . 13 1 6 41 . 19 . . 11 8 7 . 3 2 Record 66 | . . . . . . . . . 11 . . 1 . . . . . . 5 32 . 1 . . 9 7 . . . . Part Schematic 17 | . . . . . . 1 . . 10 . 1 . . . . . . . . 4 . 1 . . . . . . . . Robot Schematic 4 | . . . . . . . . . 4 . . . . . . . . . . . . . . . . . . . . . Robot Analysis 7 | . . . . . 3 . . . . . 1 . . . . . 1 . . 1 . 1 . . . . . . . . Prototype ID Bank 14 | . . . . . . . . . 3 . 3 . . . . . 2 . . 4 . 2 . . . . . . . . Open Door 8 | . . . . . . . 1 . . . 1 . . . . . . 1 1 . . . . . 2 1 . . . 1 Level Access Points 1 | . . . . . . . . . . . 1 . . . . . . . . . . . . . . . . . . . Branch Access Points 2 | . . . . . . 1 . . . . . . . . . . 1 . . . . . . . . . . . . . Emergency Access Points 2 | . . . . . . 1 . . . . . . . . . . . . . . . 1 . . . . . . . . Terminal Index 1 | . . . . . . . . . . . 1 . . . . . . . . . . . . . . . . . . . Alert Level 18 | . . . . . 1 3 . . . . 5 . . . . . 3 . . . . 4 . . . . 2 . . . Unreport Threat 19 | . . . . . 1 5 . . . . 4 . . . . . 4 . . . . 3 . . . . 2 . . . Locate Traps 5 | . . . . . . 2 . . . . 1 . . . . . . . . . . 1 . . . . . . . 1 Reprogram Traps 1 | . . . . . 1 . . . . . . . . . . . . . . . . . . . . . . . . . Dispatch Records 2 | . . . . . 1 . . . . . . . . . . . . . . . . 1 . . . . . . . . Assault Status 1 | . . . . . . . . . . . 1 . . . . . . . . . . . . . . . . . . . Recall Investigation 9 | . . . . . . 1 . . . . 3 . . . . . 1 . . . . 2 . . . . 1 . 1 . Recall Extermination 3 | . . . . . . . . . . . . . . . . . . . . . . . . . . . 1 . 2 . Recall Reinforcements 2 | . . . . . . 1 . . . . 1 . . . . . . . . . . . . . . . . . . . Recall Assault 2 | . . . . . . 1 . . . . . . . . . . . . . . . . . . . . 1 . . . Hauler Manifests 2 | . . . . . 1 1 . . . . . . . . . . . . . . . . . . . . . . . . Registered Components 4 | . . . . . 1 1 . . . . 1 . . . . . . . . . . 1 . . . . . . . . Registered Prototypes 4 | . . . . . . 1 . . . . 1 . . . . . 1 . . . . 1 . . . . . . . . Zone Layout 3 | . . . . . 1 . . . . . 2 . . . . . . . . . . . . . . . . . . . Proto ID Catalog 1 | . . . 1 . . . . . . . . . . . . . . . . . . . . . . . . . . . Fabricator Hacks 18 | . . . . . . 3 . . . . 6 . . . . . 3 . . . . 3 . . . 2 1 . . . Network Status 7 | . . . . . . 2 . . . . 1 . . . . . 2 . . . . 1 . . . . 1 . . . Load Schematic 7 | . . . . . . 1 . . . . 3 . . . . . 1 . . . . 1 . . . 1 . . . . Build 4 | . . . . . . . . . . . 2 . . . . . . . . . . 1 . . . 1 . . . . Repair Station Hacks . | . . . . . . . . . . . . . . . . . . . . . . . . . . . . . . . Recycling Unit Hacks 33 | . 2 . . . 2 3 . . . . 11 . . . . . 5 . . . . 6 . . . 2 2 . . . Report Inventory 25 | . 2 . . . 2 3 . . . . 7 . . . . . 4 . . . . 4 . . . 1 2 . . . Retrieve Components 8 | . . . . . . . . . . . 4 . . . . . 1 . . . . 2 . . . 1 . . . . Scanalyzer 7 | . . . . . . 3 . . . . 3 . . . . . . . . . . 1 . . . . . . . . Retrieve Study 7 | . . . . . . 3 . . . . 3 . . . . . . . . . . 1 . . . . . . . . Garrison Access Hacks 13 | . . . . . 1 3 . . . . 3 . . . . . 2 . . . . 2 . . . . . . 2 . Seal Access 13 | . . . . . 1 3 . . . . 3 . . . . . 2 . . . . 2 . . . . . . 2 . Unauthorized Hacks 123 | . 9 . . . 14 12 . . . . 26 . . . . . 21 . . . . 14 . . . 1 12 . 9 5 Terminals 87 | . 9 . . . 13 11 . . . . 15 . . . . . 10 . . . . 8 . . . . 7 . 9 5 Track 2 | . . . . . . . . . . . 1 . . . . . . . . . . . . . . . . . 1 . Assimilate 4 | . . . . . 2 2 . . . . . . . . . . . . . . . . . . . . . . . . Botnet 21 | . 3 . . . 4 3 . . . . 2 . . . . . 2 . . . . 2 . . . . 2 . 2 1 Disrupt 5 | . . . . . 2 1 . . . . . . . . . . . . . . . 1 . . . . . . . 1 Operators 1 | . . . . . . . . . . . 1 . . . . . . . . . . . . . . . . . . . Skim 54 | . 6 . . . 5 5 . . . . 11 . . . . . 8 . . . . 5 . . . . 5 . 6 3 Fabricators 27 | . . . . . . 1 . . . . 6 . . . . . 9 . . . . 5 . . . 1 5 . . . Report 7 | . . . . . . . . . . . 2 . . . . . 3 . . . . 1 . . . . 1 . . . Prioritize 3 | . . . . . . . . . . . 1 . . . . . . . . . . 1 . . . . 1 . . . Liberate 6 | . . . . . . . . . . . 1 . . . . . 3 . . . . 1 . . . . 1 . . . Fabnet 8 | . . . . . . 1 . . . . 1 . . . . . 3 . . . . 1 . . . 1 1 . . . Haulers 3 | . . . . . . . . . . . 1 . . . . . . . . . . 1 . . . . 1 . . . Repair Stations 3 | . . . . . . . . . . . 1 . . . . . 2 . . . . . . . . . . . . . Mechanics 3 | . . . . . . . . . . . 1 . . . . . 2 . . . . . . . . . . . . . Recycling Units 5 | . . . . . . . . . . . 4 . . . . . . . . . . 1 . . . . . . . . Reject 5 | . . . . . . . . . . . 4 . . . . . . . . . . 1 . . . . . . . . Scanalyzers 1 | . . . . . 1 . . . . . . . . . . . . . . . . . . . . . . . . . Researchers 1 | . . . . . 1 . . . . . . . . . . . . . . . . . . . . . . . . . Garrison Access . | . . . . . . . . . . . . . . . . . . . . . . . . . . . . . . . Data Cores Recovered 18 | . . . . . 3 3 . . . . 3 . . . . . 2 . . . . 2 . . . . 2 . 2 1 Used 9 | . . . . . . 1 . . . . 2 . . . . . 1 . . . . 2 . . . . 1 . 1 1 Hacking Detections 101 | . 7 . . . 10 11 . . . . 25 . . . . . 18 . 1 . . 9 . . . 2 8 2 5 3 Full Trace Events 12 | . . . . . . 1 . . . . 5 . . . . . 1 . 1 . . 1 . . . 1 . 1 1 . Feedback Events 1 | . . . . . . 1 . . . . . . . . . . . . . . . . . . . . . . . . Corruption 1 | . . . . . . 1 . . . . . . . . . . . . . . . . . . . . . . . . Feedback Blocked . | . . . . . . . . . . . . . . . . . . . . . . . . . . . . . . . Robot Schematics Acquired 54 | . . . . . . . . . 4 . . . . . . . 50 . . . . . . . . . . . . . Robots Built . | . . . . . . . . . . . . . . . . . . . . . . . . . . . . . . . Authchips . | . . . . . . . . . . . . . . . . . . . . . . . . . . . . . . . Time . | . . . . . . . . . . . . . . . . . . . . . . . . . . . . . . . Total Robot Build Rating . | . . . . . . . . . . . . . . . . . . . . . . . . . . . . . . . Part Schematics Acquired 17 | . . . . . . 1 . . 10 . 1 . . . . . . . . 4 . 1 . . . . . . . . Parts Built 4 | . . . . . . . . . . . 2 . . . . . . . . . . 1 . . . 1 . . . . Authchips . | . . . . . . . . . . . . . . . . . . . . . . . . . . . . . . . Time 337 | . . . . . . . . . . . 185 . . . . . . . . . . 76 . . . 76 . . . . Total Part Build Rating 19 | . . . . . . . . . . . 9 . . . . . . . . . . 5 . . . 5 . . . . Part Studies Acquired 7 | . . . . . . 3 . . . . 3 . . . . . . . . . . 1 . . . . . . . . Parts Repaired . | . . . . . . . . . . . . . . . . . . . . . . . . . . . . . . . Time . | . . . . . . . . . . . . . . . . . . . . . . . . . . . . . . . Parts Recycled . | . . . . . . . . . . . . . . . . . . . . . . . . . . . . . . . Recycled Matter . | . . . . . . . . . . . . . . . . . . . . . . . . . . . . . . . Retrieved Matter . | . . . . . . . . . . . . . . . . . . . . . . . . . . . . . . . Retrieved Components 30 | . . . . . . . . . . . 16 . . . . . 3 . . . . 6 . . . 5 . . . . Parts Scanalyzed . | . . . . . . . . . . . . . . . . . . . . . . . . . . . . . . . Part Schematics Acquired . | . . . . . . . . . . . . . . . . . . . . . . . . . . . . . . . Parts Damaged . | . . . . . . . . . . . . . . . . . . . . . . . . . . . . . . . Bothacking | -11 -10 -10 -10 -9 -8 -7 -7 -7 -7 -6 -6 -6 -6 -6 -6 -5 -5 -5 -5 -5 -4 -4 -4 -4 -4 -3 -3 -2 -1 -1 ------------ Run | Yrd Mat Min Exi Min Mat Fac Low Low Dat Pro Fac Low Low Zio Dee Pro Fac Upp Upp Zhi Pro Fac Upp Upp War Pro Res Res Acc Com Used RIF Installer . | . . . . . . . . . . . . . . . . . . . . . . . . . . . . . . . Robots Hacked 17 | . . . . . . . . . . 1 . . . . . . 1 . 2 . . . . . 6 1 1 4 1 . Non-combat . | . . . . . . . . . . . . . . . . . . . . . . . . . . . . . . . Combat 17 | . . . . . . . . . . 1 . . . . . . 1 . 2 . . . . . 6 1 1 4 1 . Robot Hacks Applied . | . . . . . . . . . . . . . . . . . . . . . . . . . . . . . . . Relay Couplers Released . | . . . . . . . . . . . . . . . . . . . . . . . . . . . . . . . Fabnet Peak Effective % 10 | . . . . . . . . . . 3 3 3 3 3 3 4 4 4 4 4 10 10 10 10 10 3 3 6 2 2 Autooverrided 17 | . . . . . . . . . . 1 . . . . . . 1 . 2 . . . . . 6 1 1 4 1 . Robots Rewired 1 | . . . . . . 1 . . . . . . . . . . . . . . . . . . . . . . . . Allies Hacked 1 | . . . . . . . . . . . . . . . . . 1 . . . . . . . . . . . . . Hacks Repelled . | . . . . . . . . . . . . . . . . . . . . . . . . . . . . . . . Allies | -11 -10 -10 -10 -9 -8 -7 -7 -7 -7 -6 -6 -6 -6 -6 -6 -5 -5 -5 -5 -5 -4 -4 -4 -4 -4 -3 -3 -2 -1 -1 -------- Run | Yrd Mat Min Exi Min Mat Fac Low Low Dat Pro Fac Low Low Zio Dee Pro Fac Upp Upp Zhi Pro Fac Upp Upp War Pro Res Res Acc Com Total Allies 38 | . . . . 1 . 2 . . . 1 . . . 6 . . 13 . 2 . . . . . 6 1 1 4 1 . Largest Group 6 | . . . . 1 . 2 . . . 1 . . . 6 6 . 3 . 1 . . . . . 2 1 1 1 1 . Highest-Rated Group 183 | . . . . 31 . 40 . . . 29 . . . 134 134 . 87 . 29 . . . . . 115 64 55 82 183 . Highest-Rated Ally 183 | . . . . 31 . 30 . . . 29 . . . 33 33 . 29 . 29 . . . . . 68 64 55 82 183 . Total Orders 5 | . . . . . . 5 . . . . . . . . . . . . . . . . . . . . . . . . STAY 3 | . . . . . . 3 . . . . . . . . . . . . . . . . . . . . . . . . FOLLOW 2 | . . . . . . 2 . . . . . . . . . . . . . . . . . . . . . . . . Ally Attacks 116 | . . . . 1 . 3 . . . . . . . . 25 . 42 . 7 . . . . . 15 6 . 14 3 . Total Damage 3636 | . . . . 21 . 115 . . . . . . . . 333 . 533 . 135 . . . . . 748 233 . 1245 273 . Kills 20 | . . . . . . 1 . . . . . . . . 2 . 3 . 1 . . . . . 5 . . 7 1 . Allies Corrupted 3 | . . . . . . . . . . . . . . . . . 1 . 1 . . . . . . . . 1 . . Allies Melted . | . . . . . . . . . . . . . . . . . . . . . . . . . . . . . . . Intel | -11 -10 -10 -10 -9 -8 -7 -7 -7 -7 -6 -6 -6 -6 -6 -6 -5 -5 -5 -5 -5 -4 -4 -4 -4 -4 -3 -3 -2 -1 -1 ------- Run | Yrd Mat Min Exi Min Mat Fac Low Low Dat Pro Fac Low Low Zio Dee Pro Fac Upp Upp Zhi Pro Fac Upp Upp War Pro Res Res Acc Com Active Infowar (turns) 35980 | 8 1695 295 147 771 2613 2763 961 1145 183 1350 1987 1114 780 569 550 1185 2530 1107 925 73 1153 877 1812 1321 834 2312 1782 1599 898 641 Sensors 224 | . 224 . . . . . . . . . . . . . . . . . . . . . . . . . . . . . Zeronet 929 | . . . . . . . . . . . . . . . . . 893 36 . . . . . . . . . . . . Terrain 34188 | 8 1695 295 147 771 2613 2763 961 1145 183 1350 1987 1114 780 569 550 1185 2394 1107 925 73 1153 787 1315 1262 797 1485 1636 1599 898 641 T.N.C. 572 | . . . . . 572 . . . . . . . . . . . . . . . . . . . . . . . . . Cloaking 110 | . . . . . . . . . . . . . . . . . . . . . . . . . . . . . 110 . Jamming 17403 | . . . . . . . . . . . . . . . . . 2069 1107 925 73 1153 877 1812 1321 834 2312 1782 1599 898 641 ECM 3319 | . 1212 295 147 767 898 . . . . . . . . . . . . . . . . . . . . . . . . . Robot Analysis Total 103 | . . . . . 3 . . . . . 1 . . . . . 97 . . 1 . 1 . . . . . . . . Derelict Logs Recovered 22 | . . 2 . 2 . . 2 1 . 2 . 2 1 1 . 2 . 1 1 . 3 . 1 1 . . . . . . Drone Launches . | . . . . . . . . . . . . . . . . . . . . . . . . . . . . . . . Drone Recoveries . | . . . . . . . . . . . . . . . . . . . . . . . . . . . . . . . Exploration | -11 -10 -10 -10 -9 -8 -7 -7 -7 -7 -6 -6 -6 -6 -6 -6 -5 -5 -5 -5 -5 -4 -4 -4 -4 -4 -3 -3 -2 -1 -1 ------------- Run | Yrd Mat Min Exi Min Mat Fac Low Low Dat Pro Fac Low Low Zio Dee Pro Fac Upp Upp Zhi Pro Fac Upp Upp War Pro Res Res Acc Com Turns Passed 37709 | 73 1695 295 147 771 2613 2763 961 1145 183 1350 2857 1298 828 987 694 1185 2530 1107 925 73 1153 877 1812 1321 834 2312 1782 1599 898 641 Spaces Moved 42225 | 46 1867 395 368 921 2320 3120 1010 1128 99 1178 3654 1045 750 1419 983 1173 3783 1063 820 203 1242 1345 1131 907 1460 1436 2559 2755 1267 778 Core 3 | 1 . . . . . . . . . . . . . . 2 . . . . . . . . . . . . . . . Treads . | . . . . . . . . . . . . . . . . . . . . . . . . . . . . . . . Legs . | . . . . . . . . . . . . . . . . . . . . . . . . . . . . . . . Wheels 102 | 45 57 . . . . . . . . . . . . . . . . . . . . . . . . . . . . . Hover . | . . . . . . . . . . . . . . . . . . . . . . . . . . . . . . . Flight 42120 | . 1810 395 368 921 2320 3120 1010 1128 99 1178 3654 1045 750 1419 981 1173 3783 1063 820 203 1242 1345 1131 907 1460 1436 2559 2755 1267 778 Fastest Speed 5 | 50 34 34 34 29 26 23 23 23 23 23 5 23 23 23 5 5 5 23 5 23 5 20 5 20 20 5 5 18 18 5 Average Speed 23 | 79 35 34 34 31 28 29 23 23 23 23 23 23 23 23 21 22 22 23 22 23 22 20 19 20 20 19 19 18 18 16 Slowest Speed 200 | 80 200 34 34 34 105 105 23 23 23 23 24 23 23 23 100 23 23 23 23 23 23 23 20 20 20 20 20 19 18 92 Overloaded Moves 393 | . . . . . . . . . . . 20 . . . 76 10 131 . 5 . 8 . 5 . . 3 2 . . 133 Propulsion Burnouts . | . . . . . . . . . . . . . . . . . . . . . . . . . . . . . . . Robots Hopped 74 | . 8 1 . 4 1 4 . . . . 11 . . . . . 10 . . . . 3 . . 4 . 12 15 . 1 Potential Cave-ins 1 | . . . . . . . . . . . . . . . . . . . . . . . 1 . . . . . . . Cave-ins Triggered 4 | . . . . . 1 . . . . . . . . . . . 1 . . . . . 1 . . 1 . . . . Exploration Rate (%) 76 | 3 99 79 84 100 96 59 95 94 75 96 77 92 96 89 72 96 57 96 88 62 95 31 95 79 94 81 60 65 33 31 Regions Visited 30 Branch Regions 21 Pre-discovered Areas 25 | . 3 . . 2 1 4 1 . 1 1 2 1 . 2 . . 1 . . . 3 . 1 1 . . 1 . . . Known Exits Taken 26 | . 1 . . . 1 1 1 1 1 1 1 1 1 1 1 1 1 1 1 1 1 1 1 1 1 1 1 1 1 . Unknown Exits Taken 4 | 1 . 1 1 1 . . . . . . . . . . . . . . . . . . . . . . . . . . Scrap Searched 45 | . . 1 . 4 . . 2 5 . 3 . 5 3 2 . 4 . 2 5 . 1 . 1 4 . 3 . . . . Spaces Dug 187 | . . . . . 23 13 1 3 . 1 30 . . . . 2 22 1 . . 1 10 5 . . 6 24 21 15 9 Terrain Destroyed 459 | 7 195 . . . 23 13 1 3 . 1 30 . . . . 2 22 1 . . 1 10 5 . . 6 24 21 15 79 Melee 187 | . . . . . 23 13 1 3 . 1 30 . . . . 2 22 1 . . 1 10 5 . . 6 24 21 15 9 Projectile . | . . . . . . . . . . . . . . . . . . . . . . . . . . . . . . . AOE 272 | 7 195 . . . . . . . . . . . . . . . . . . . . . . . . . . . . 70 Terrain Rammed . | . . . . . . . . . . . . . . . . . . . . . . . . . . . . . . . Walls Destroyed . | . . . . . . . . . . . . . . . . . . . . . . . . . . . . . . . Machines Disabled . | . . . . . . . . . . . . . . . . . . . . . . . . . . . . . . . Actions | -11 -10 -10 -10 -9 -8 -7 -7 -7 -7 -6 -6 -6 -6 -6 -6 -5 -5 -5 -5 -5 -4 -4 -4 -4 -4 -3 -3 -2 -1 -1 --------- Run | Yrd Mat Min Exi Min Mat Fac Low Low Dat Pro Fac Low Low Zio Dee Pro Fac Upp Upp Zhi Pro Fac Upp Upp War Pro Res Res Acc Com Total 66581 | 65 2554 551 389 1353 3893 4341 1724 1977 258 2176 5474 2076 1397 2046 1414 2061 5181 1880 1510 222 2070 1870 2581 1999 1999 3278 3594 3697 1786 1165 Wait 21560 | 7 400 151 20 373 1306 816 703 811 160 934 1675 1008 643 580 371 844 1175 769 638 5 800 470 1311 1033 512 1717 842 812 389 285 Move 42056 | 45 1851 392 367 912 2317 3111 1009 1127 98 1177 3633 1044 749 1418 982 1172 3762 1062 819 202 1241 1338 1130 906 1453 1435 2534 2729 1265 776 Hop 64 | . 7 1 . 4 1 4 . . . . 9 . . . . . 10 . . . . 3 . . 2 . 12 10 . 1 Pick Up 79 | . 3 1 . 2 3 2 1 2 . 1 2 . . 2 2 2 1 3 3 1 . . 2 . 3 . 16 20 5 2 Fast Attach 133 | 6 12 . 1 5 10 13 1 1 . 1 8 . . 11 13 . 12 . 1 4 . 7 . 2 11 1 7 3 1 2 Attach 25 | . 2 1 . 1 1 2 1 1 . 1 . . . 2 1 3 1 1 . . . . . . . . 2 2 2 1 Detach 26 | . 4 . . . 3 5 1 . . . 1 . . 2 1 1 4 . 1 . . . . . . . 1 2 . . Swap 131 | . 2 1 . 1 12 14 1 1 . . 20 4 2 1 7 1 5 1 . . . 3 4 3 2 7 15 17 3 4 Drop 192 | . 11 2 1 5 7 15 . 2 . 1 16 . . 13 14 1 12 3 3 4 . 6 2 3 16 1 25 22 4 3 Fire 122 | 7 112 . . 1 . . . . . . . . . . . . . . . . . . . . . . . . . 2 Melee 1294 | . 119 2 . 14 108 80 6 17 . 38 88 11 3 17 23 16 140 23 24 3 20 37 67 23 . 89 115 65 75 71 Ram . | . . . . . . . . . . . . . . . . . . . . . . . . . . . . . . . Kick . | . . . . . . . . . . . . . . . . . . . . . . . . . . . . . . . Crush . | . . . . . . . . . . . . . . . . . . . . . . . . . . . . . . . Escape Stasis 31 | . . . . . . 30 . . . . . . . . . . . . . . . . . . . . . . 1 . Rewire 9 | . . . . . . 9 . . . . . . . . . . . . . . . . . . . . . . . . Trap . | . . . . . . . . . . . . . . . . . . . . . . . . . . . . . . . Miscellaneous 859 | . 31 . . 35 125 240 1 15 . 23 22 9 . . . 21 59 18 21 3 9 6 65 29 . 28 25 15 41 18 Route ------- -11/Scrapyard -10/Materials (discovered 5 exits: *Mat x3 / *Min / [*Sub]) -10/Mines (discovered 4 exits: *Mat x2 / *Exi / [*Sub]) -10/Exiles -9/Mines (discovered 2 exits: *Mat x2) -8/Materials (discovered 3 exits: *Fac x3) -7/Factory (discovered 6 exits: *Fac x4 / *Low x2) -7/Lower Caves -7/Lower Caves (discovered 2 exits: Fac / *Dat) -7/Data Miner -6/Proximity Caves -6/Factory (discovered 7 exits: *Fac x4 / *Low / *Ext x2) -6/Lower Caves -6/Lower Caves (discovered 2 exits: *Fac / *Zio) -6/Zion (discovered 2 exits: *Dee / *Pro) -6/Deep Caves -5/Proximity Caves -5/Factory (discovered 6 exits: Fac x4 / *Upp x2) -5/Upper Caves -5/Upper Caves (discovered 2 exits: *Fac / *Zhi) -5/Zhirov -4/Proximity Caves -4/Factory (discovered 3 exits: *Res / *Upp x2) -4/Upper Caves -4/Upper Caves (discovered 2 exits: Res / *War) -4/Warlord -3/Proximity Caves -3/Research (discovered 5 exits: *Res x3 / *Tes x2) -2/Research (discovered 5 exits: *Acc x3 / *Qua x2) -1/Access (discovered 2 exits: Sur / *Com) -1/Command History --------- Turn | Location | Event 1 | -11/Scrapyard | Upgraded with Propulsion slot (x1) 1 | -11/Scrapyard | Upgraded with Utility slot (x2) 1 | -11/Scrapyard | Upgraded with Weapon slot (x1) 19 | -11/Scrapyard | Discovered new exit (range 15) 74 | -11/Scrapyard | Entered Materials 89 | -10/Materials | Discovered new exit (range 14) 227 | -10/Materials | Discovered new exit (range 16) 242 | -10/Materials | Discovered new exit (range 14) 360 | -10/Materials | Core integrity fell below 50% 366 | -10/Materials | Reached level 2 369 | -10/Materials | Upgraded with Propulsion slot (x1) 428 | -10/Materials | Identified exit to Mines 637 | -10/Materials | Discovered new exit (range 16) 643 | -10/Materials | Discovered new exit (range 13) 752 | -10/Materials | Reached level 3 774 | -10/Materials | Derelicts attacked the area 947 | -10/Materials | Build established: Scavenger-Mutant 1088 | -10/Materials | Learned Storage security intel 1223 | -10/Materials | Identified exit to Materials 1277 | -10/Materials | Learned location of 2 exits from Subcaves 1319 | -10/Materials | Learned Storage emergency access door positions 1410 | -10/Materials | Learned location of Storage (-9) 1513 | -10/Materials | Learned 4 Subcaves zone layouts 1524 | -10/Materials | Reached level 4 1769 | -10/Materials | Entered Mines 1776 | -10/Mines | Received a Rocket Launcher from a helpful Derelict 1807 | -10/Mines | Discovered exit to Materials (range 16) 1813 | -10/Mines | Discovered new exit (range 7) 1910 | -10/Mines | Discovered exit to Materials (range 16) 1991 | -10/Mines | Learned Materials trap positions 2015 | -10/Mines | Learned Materials terminal intel 2022 | -10/Mines | Deemed a non-threat by the Exiles lab entrance 2027 | -10/Mines | Discovered new exit (range 5) 2064 | -10/Mines | Entered Exiles 2066 | -10/Exiles | Reached level 5 2073 | -10/Exiles | Met 8R-AWN 2078 | -10/Exiles | Met EX-HEX 2089 | -10/Exiles | Met EX-BIN 2093 | -10/Exiles | Aligned with FarCom system 2093 | -10/Exiles | Given EX-Vault access code 2101 | -10/Exiles | Opened EX-Vault 2104 | -10/Exiles | Found Longsword +1 2113 | -10/Exiles | Warned to stay clear of 0b10 Research branches 2130 | -10/Exiles | Met EX-DEC 2137 | -10/Exiles | Visited The Gauntlet 2178 | -10/Exiles | Discovered new exit (range 11) 2211 | -10/Exiles | Upgraded with Propulsion slot (x1) 2211 | -10/Exiles | Upgraded with Utility slot (x1) 2211 | -10/Exiles | Left Exiles lab with Longsword +1 2211 | -10/Exiles | Entered Mines 2211 | -9/Mines | Discovered new exit (range 7) 2224 | -9/Mines | Met a Derelict bent on vengeance 2231 | -9/Mines | Upgraded with Power slot (x1) 2309 | -9/Mines | Found a hidden stash of uninstalled traps 2351 | -9/Mines | Received a Mining Laser from a helpful Derelict 2552 | -9/Mines | Build established: Scavenger-Ninja 2915 | -9/Mines | Discovered new exit (range 16) 2924 | -9/Mines | Learned location of Zion (-6) 2957 | -9/Mines | Reached level 6 2982 | -9/Mines | Entered Materials 2983 | -8/Materials | Loaded intel: 16 trap records 2984 | -8/Materials | Loaded intel: 12 terminal locations 2984 | -8/Materials | Reached level 7 2985 | -8/Materials | Upgraded with Utility slot (x2) 3154 | -8/Materials | Central database locked down 3332 | -8/Materials | Garrison activated, responded to threat 3420 | -8/Materials | Reached level 8 3431 | -8/Materials | Upgraded with Weapon slot (x1) 3739 | -8/Materials | Build established: Hacker-Ninja 3757 | -8/Materials | Discovered new exit (range 3) 3802 | -8/Materials | Crushed by falling debris 3847 | -8/Materials | Identified exit to Factory 3910 | -8/Materials | Learned Factory emergency access door positions 4004 | -8/Materials | Learned location of Extension (-6) 4035 | -8/Materials | Learned location of 1 exit from Extension 4167 | -8/Materials | Build established: Hacker-Scout 4173 | -8/Materials | Reached level 9 4187 | -8/Materials | Upgraded with Weapon slot (x1) 4620 | -8/Materials | Reached level 10 4690 | -8/Materials | Upgraded with Propulsion slot (x1) 5533 | -8/Materials | Reached level 11 5595 | -8/Materials | Entered Factory 5596 | -7/Factory | Identified exit to Factory 5597 | -7/Factory | Reached level 12 5597 | -7/Factory | Upgraded with Utility slot (x1) 5799 | -7/Factory | Discovered new exit (range 13) 6049 | -7/Factory | Reached level 13 6351 | -7/Factory | Discovered new exit (range 14) 6395 | -7/Factory | First assault squad dispatched 6423 | -7/Factory | Reached level 14 6426 | -7/Factory | Upgraded with Utility slot (x1) 6656 | -7/Factory | Discovered exit to Factory (range 16) 7373 | -7/Factory | Reached level 15 7517 | -7/Factory | Loaded intel: 6 repair station locations 7569 | -7/Factory | Learned location of Proximity Caves (-5) 7658 | -7/Factory | Identified exit to Lower Caves 7676 | -7/Factory | Learned Extension emergency access door positions 7696 | -7/Factory | Learned Factory emergency access door positions 7719 | -7/Factory | Learned location of Warlord (-4) 7754 | -7/Factory | Learned Extension emergency access door positions 7798 | -7/Factory | Learned location of 1 exit from Proximity Caves 8108 | -7/Factory | Central database locked down 8358 | -7/Factory | Entered Lower Caves 8429 | -7/Lower Caves | Attacked by a delusional Derelict stockpiling parts 8538 | -7/Lower Caves | Activated DRS Beacon 8624 | -7/Lower Caves | Learned Factory interactive machine intel 8645 | -7/Lower Caves | Build established: Hacker-Sprinter 8804 | -7/Lower Caves | Discovered new exit (range 17) 8807 | -7/Lower Caves | Identified exit to Lower Caves 9319 | -7/Lower Caves | Entered another Lower Caves area 9404 | -7/Lower Caves | Discovered exit to Factory (range 15) 9729 | -7/Lower Caves | Encountered a Warlord checkpoint 10234 | -7/Lower Caves | Attacked by a faux Warlord 10280 | -7/Lower Caves | Learned location of 2 exits from Factory 10287 | -7/Lower Caves | Discovered new exit (range 5) 10288 | -7/Lower Caves | Identified exit to Data Miner 10464 | -7/Lower Caves | Entered Data Miner 10464 | -7/Data Miner | Discovered new exit (range 6) 10466 | -7/Data Miner | Reached level 16 10469 | -7/Data Miner | Met Data Miner 10510 | -7/Data Miner | Learned location of Section 7 (-2) 10510 | -7/Data Miner | Acquired the access code to Warlord's prototype stash 10533 | -7/Data Miner | Received God Mode back door access code from Data Miner 10647 | -7/Data Miner | Identified exit to Proximity Caves 10647 | -7/Data Miner | Entered Proximity Caves 10687 | -6/Proximity Caves | Reached level 17 10696 | -6/Proximity Caves | Upgraded with Utility slot (x1) 10976 | -6/Proximity Caves | Spotter reported a threat 10985 | -6/Proximity Caves | Build established: Hacker-Scout 11490 | -6/Proximity Caves | Attracted the attention of an 0b10 outpost 11908 | -6/Proximity Caves | Reached level 18 11997 | -6/Proximity Caves | Entered Factory 11998 | -6/Factory | Identified exit to Extension 11999 | -6/Factory | Identified exit to Factory 12001 | -6/Factory | Loaded intel: 56 interactive machine locations 12462 | -6/Factory | Fabricated Cld. VTOL Module (x1) 12888 | -6/Factory | Fabricated Gravity Neutralizer (x1) 13025 | -6/Factory | Discovered new exit (range 17) 13154 | -6/Factory | Reached level 19 13498 | -6/Factory | Discovered exit to Factory (range 3) 13713 | -6/Factory | Learned Hub_04(d) non-interactive machine intel 13766 | -6/Factory | Learned Factory interactive machine intel 13808 | -6/Factory | Learned location of 2 exits from Upper Caves 13865 | -6/Factory | Loaded intel: 6 repair station locations 13866 | -6/Factory | Learned location of 3 exits from Factory 13873 | -6/Factory | Learned Extension trap positions 13888 | -6/Factory | Learned 2 Upper Caves zone layouts 13910 | -6/Factory | Discovered exit to Factory (range 16) 13914 | -6/Factory | Loaded intel: 28 terminal locations 13949 | -6/Factory | Learned location of 1 exit from Hub_04(d) 14663 | -6/Factory | Identified exit to Lower Caves 14828 | -6/Factory | Learned Extension emergency access door positions 14846 | -6/Factory | Learned location of 2 exits from Factory 14854 | -6/Factory | Entered Lower Caves 14893 | -6/Lower Caves | Learned 12 Factory zone layouts 15319 | -6/Lower Caves | Spotted B-75 Beast 15892 | -6/Lower Caves | Discovered new exit (range 16) 15916 | -6/Lower Caves | Identified exit to Lower Caves 16152 | -6/Lower Caves | Entered another Lower Caves area 16197 | -6/Lower Caves | Discovered exit to Factory (range 10) 16555 | -6/Lower Caves | Discovered new exit (range 8) 16571 | -6/Lower Caves | Identified exit to Zion 16706 | -6/Lower Caves | Learned Factory garrison access intel 16707 | -6/Lower Caves | Encountered a Warlord checkpoint 16934 | -6/Lower Caves | Reached level 20 16980 | -6/Lower Caves | Entered Zion 17087 | -6/Zion | Given the Hacking Drone Bay 17087 | -6/Zion | Found Prototype Device 17087 | -6/Zion | Identified Hacking Drone Bay 17100 | -6/Zion | Found Prototype Energy Gun 17100 | -6/Zion | Identified Storm Laser 17117 | -6/Zion | Discovered new exit (range 15) 17126 | -6/Zion | Identified exit to Proximity Caves 17256 | -6/Zion | Found Prototype Device 17256 | -6/Zion | Identified Bomb Factory No. 2 17363 | -6/Zion | Gained Derelict followers 17376 | -6/Zion | Rebuked by Imprinter 17415 | -6/Zion | Gained Derelict followers 17424 | -6/Zion | Found Prototype Device 17424 | -6/Zion | Identified Mobile Refinery Mk. CCLXVII 17550 | -6/Zion | Discovered new exit (range 12) 17609 | -6/Zion | Saw the warning signs outside the Deep Caves entrance 17610 | -6/Zion | Identified exit to Deep Caves 17967 | -6/Zion | Entered Deep Caves 17967 | -6/Deep Caves | Accompanied by 6 allies 18213 | -6/Deep Caves | Z-Facility disabled 18219 | -6/Deep Caves | Lost 3 allies 18220 | -6/Deep Caves | Found Prototype Protection 18220 | -6/Deep Caves | Identified Zio. Weapon Casing 18242 | -6/Deep Caves | Found Surveybot 24 Scanner 18250 | -6/Deep Caves | Attacked by Z-Imprinter 18262 | -6/Deep Caves | Destroyed Z-Imprinter 18263 | -6/Deep Caves | Core integrity fell below 50% 18321 | -6/Deep Caves | Discovered new exit (range 18) 18335 | -6/Deep Caves | Identified exit to Proximity Caves 18568 | -6/Deep Caves | Spotted AG-32648 18661 | -6/Deep Caves | Entered Proximity Caves 18812 | -5/Proximity Caves | Learned Factory security intel 19103 | -5/Proximity Caves | Reached level 21 19106 | -5/Proximity Caves | Upgraded with Utility slot (x1) 19117 | -5/Proximity Caves | Attracted the attention of an 0b10 checkpoint 19846 | -5/Proximity Caves | Entered Factory 19847 | -5/Factory | Identified exit to Upper Caves 19848 | -5/Factory | Identified exit to Factory 19851 | -5/Factory | Loaded intel: 54 interactive machine locations 19852 | -5/Factory | Loaded intel: 4 garrison access locations 19997 | -5/Factory | Spotted B-75 Beast 20368 | -5/Factory | Reached level 22 20587 | -5/Factory | Cargo convoy interrupted 20594 | -5/Factory | Build established: Hacker-Ninja 20721 | -5/Factory | Unchained authorized (CL-0N3) 20751 | -5/Factory | Found Prototype Processor 20751 | -5/Factory | Identified Exp. Core Analyzer 20753 | -5/Factory | Found Prototype Device 20753 | -5/Factory | Identified Exp. Transmission Jammer 21454 | -5/Factory | U-05 Engineer reconstituted as Armor Guard 21454 | -5/Factory | Spotted Armor Guard 21466 | -5/Factory | Destroyed Armor Guard 21466 | -5/Factory | Armor Guard reconstituted as CL-0N3 21476 | -5/Factory | Learned location of 1 exit from Upper Caves 21479 | -5/Factory | Destroyed CL-0N3 21480 | -5/Factory | Extracted schematics, analyses from CL-0N3's data core 21483 | -5/Factory | Found Prototype Device 21483 | -5/Factory | Identified Zeronet Interface 21547 | -5/Factory | Learned Research trap positions 21695 | -5/Factory | Learned 4 Testing zone layouts 21753 | -5/Factory | Reached level 23 22049 | -5/Factory | Crushed by falling debris 22376 | -5/Factory | Entered Upper Caves 22377 | -5/Upper Caves | Identified exit to Upper Caves 22636 | -5/Upper Caves | Attracted the attention of an 0b10 outpost 22671 | -5/Upper Caves | Destroyed 7 combat bots 22816 | -5/Upper Caves | Learned Factory security intel 23267 | -5/Upper Caves | Encountered a Warlord checkpoint 23483 | -5/Upper Caves | Entered another Upper Caves area 23484 | -5/Upper Caves | Identified exit to Zhirov 23889 | -5/Upper Caves | Learned Factory machine intel 23919 | -5/Upper Caves | Spotted B-75 Beast 24225 | -5/Upper Caves | Learned location of 1 exit from Research 24225 | -5/Upper Caves | Learned Factory trap positions 24235 | -5/Upper Caves | Attracted the attention of an 0b10 base 24353 | -5/Upper Caves | Reached level 24 24355 | -5/Upper Caves | Attracted the attention of an 0b10 checkpoint 24408 | -5/Upper Caves | Entered Zhirov 24408 | -5/Zhirov | Discovered new exit (range 3) 24413 | -5/Zhirov | Met Zhirov 24422 | -5/Zhirov | Zhirov requested help retrieving the SGEMP Prototype 24456 | -5/Zhirov | Found Alien Artifact 24456 | -5/Zhirov | Identified Integrated Dissipator 24456 | -5/Zhirov | Installed Integrated Dissipator, increased core heat dissipation (+20) 24462 | -5/Zhirov | Found Alien Artifact 24481 | -5/Zhirov | Identified exit to Proximity Caves 24481 | -5/Zhirov | Entered Proximity Caves 24572 | -4/Proximity Caves | P-70 Sage assimilated allied YP-XZK(c) 24639 | -4/Proximity Caves | Spotter reported a threat 24690 | -4/Proximity Caves | Attracted the attention of an 0b10 outpost 24737 | -4/Proximity Caves | Destroyed 7 combat bots 25256 | -4/Proximity Caves | Learned location of Testing (-3) 25262 | -4/Proximity Caves | Discovered exit to Factory (range 20) 25305 | -4/Proximity Caves | Spotted B-86 Titan 25574 | -4/Proximity Caves | Learned location of Armory (-4) 25575 | -4/Proximity Caves | Learned location of Quarantine (-2) 25634 | -4/Proximity Caves | Entered Factory 25635 | -4/Factory | Identified exit to Research 25635 | -4/Factory | Identified exit to Upper Caves 25636 | -4/Factory | Loaded intel: 75 trap records 25636 | -4/Factory | Reached level 25 25638 | -4/Factory | Loaded intel: 290 machine locations 25671 | -4/Factory | Upgraded with Propulsion slot (x1) 26065 | -4/Factory | Learned Research stockpile data 26079 | -4/Factory | Fabricated Cld. Cesium-ion Thruster (x1) 26184 | -4/Factory | Learned 2 Upper Caves zone layouts 26230 | -4/Factory | Learned Armory trap positions 26266 | -4/Factory | Learned 4 Upper Caves zone layouts 26292 | -4/Factory | Learned Quarantine stockpile data 26307 | -4/Factory | Learned location of 1 exit from Quarantine 26332 | -4/Factory | Learned Research security intel 26412 | -4/Factory | Learned 4 Quarantine zone layouts 26468 | -4/Factory | Discovered exit to Upper Caves (range 11) 26511 | -4/Factory | Entered Upper Caves 26512 | -4/Upper Caves | Encountered a Warlord checkpoint 26512 | -4/Upper Caves | Identified exit to Upper Caves 26619 | -4/Upper Caves | Crushed by falling debris 27621 | -4/Upper Caves | Reached level 26 27712 | -4/Upper Caves | Spotted B-86 Titan 27990 | -4/Upper Caves | Attracted the attention of an 0b10 outpost 28101 | -4/Upper Caves | Destroyed 11 combat bots 28285 | -4/Upper Caves | Ambushed by wild Derelicts 28323 | -4/Upper Caves | Entered another Upper Caves area 28325 | -4/Upper Caves | Identified exit to Warlord 29375 | -4/Upper Caves | Attracted the attention of an 0b10 outpost 29448 | -4/Upper Caves | Destroyed 8 combat bots 29644 | -4/Upper Caves | Entered Warlord 29741 | -4/Warlord | System corruption cleaned by Quarantine Array 29786 | -4/Warlord | Opened Warlord's prototype stash 29787 | -4/Warlord | Found Prototype Processor 29787 | -4/Warlord | Identified Exp. Armor Integrity Analyzer 29795 | -4/Warlord | Found Prototype Device 29795 | -4/Warlord | Identified Exp. Phase Shifter 29800 | -4/Warlord | Found Prototype Hackware 29800 | -4/Warlord | Identified Ghost Barrier 29805 | -4/Warlord | Found Prototype Reactor 29805 | -4/Warlord | Identified Vortex Chain Reactor 29876 | -4/Warlord | Found Prototype Device 29876 | -4/Warlord | Identified Minesniffer Drone Bay 29899 | -4/Warlord | Warlord's base attacked by MAIN.C 29914 | -4/Warlord | Met Warlord 30227 | -4/Warlord | Found Prototype Energy Gun 30227 | -4/Warlord | Identified Vortex Rail 30249 | -4/Warlord | Warlord forces counterattacked 30324 | -4/Warlord | Spotted Executioner 30357 | -4/Warlord | Lost 3 allies 30456 | -4/Warlord | P-70 Sage assimilated allied JB-IH5(Y) 30471 | -4/Warlord | Discovered new exit (range 21) 30473 | -4/Warlord | Opened side exit 30478 | -4/Warlord | Identified exit to Proximity Caves 30478 | -4/Warlord | Entered Proximity Caves 30480 | -3/Proximity Caves | Reached level 27 30548 | -3/Proximity Caves | Unaware initiated a cargo recovery operation 30923 | -3/Proximity Caves | Found DCF Scrap (10 items) 31856 | -3/Proximity Caves | Crushed by falling debris 32018 | -3/Proximity Caves | Learned location of 1 exit from Proximity Caves 32018 | -3/Proximity Caves | Learned Armory trap positions 32018 | -3/Proximity Caves | Learned Factory emergency access door positions 32018 | -3/Proximity Caves | Learned Extension emergency access door positions 32018 | -3/Proximity Caves | Learned Research stockpile data 32032 | -3/Proximity Caves | Destroyed 8 combat bots 32034 | -3/Proximity Caves | Snuck into a huge 0b10 base via the rear entrance 32190 | -3/Proximity Caves | Reached level 28 32687 | -3/Proximity Caves | Fabricated Cld. Cesium-ion Thruster (x1) 32790 | -3/Proximity Caves | Entered Research 32791 | -3/Research | Identified exit to Testing 32792 | -3/Research | Loaded intel: 84 trap records 32903 | -3/Research | Reached level 29 32910 | -3/Research | Upgraded with Utility slot (x1) 33002 | -3/Research | Found Prototype Device 33014 | -3/Research | Identified Exp. Shield Generator 33482 | -3/Research | Discovered new exit (range 20) 33541 | -3/Research | Identified exit to Research 33593 | -3/Research | Learned 4 Testing zone layouts 33635 | -3/Research | Learned 4 Access zone layouts 33665 | -3/Research | Learned location of 2 exits from Research 33715 | -3/Research | Learned location of 2 exits from Research 33757 | -3/Research | Learned Testing stockpile data 34290 | -3/Research | First assault squad dispatched 34405 | -3/Research | Found Prototype Device 34415 | -3/Research | Identified Exp. ECM Suite 34462 | -3/Research | Local machine network offline 34469 | -3/Research | Found Prototype Device 34479 | -3/Research | Identified Exp. Thermal Defense Suite 34482 | -3/Research | Unchained authorized (DW-4LL) 34572 | -3/Research | Entered another Research area 34572 | -2/Research | Warlord forces began assault on 0b10 34573 | -2/Research | Identified exit to Quarantine 34573 | -2/Research | Identified exit to Access 34574 | -2/Research | Reached level 30 34682 | -2/Research | Research machine network offline 34827 | -2/Research | Found Prototype Device 34829 | -2/Research | Identified Exp. Shock Absorption System 34857 | -2/Research | Found Prototype Processor 34859 | -2/Research | Discovered exit to Quarantine (range 21) 34899 | -2/Research | Identified Spectral Analyzer 34925 | -2/Research | Met up with Warlord 34934 | -2/Research | Reached level 31 35086 | -2/Research | Borebot progress halted 35131 | -2/Research | Spotted Striker 35199 | -2/Research | Spotted B-90 Cyclops 35202 | -2/Research | Spotted Executioner 35222 | -2/Research | Borebot progress halted 35249 | -2/Research | P-80 Master assimilated allied 2N-TMM(g) 35283 | -2/Research | Destroyed B-90 Cyclops 35299 | -2/Research | Found Prototype Device 35306 | -2/Research | Borebot progress halted 35308 | -2/Research | Identified Adv. Kinecellerator 35474 | -2/Research | Spotted Striker 35953 | -2/Research | Found Prototype Device 35957 | -2/Research | Identified Exp. Cloaking Device 36076 | -2/Research | Given Cave Seal Controls access code 36171 | -2/Research | Entered Access 36173 | -1/Access | Reached level 32 36173 | -1/Access | Reached level 33 36173 | -1/Access | Upgraded with Utility slot (x1) 36396 | -1/Access | Unchained authorized (DW-4LL) 36421 | -1/Access | First assault squad dispatched 36652 | -1/Access | DW-4LL burst out of a wall 36682 | -1/Access | Destroyed DW-4LL 36832 | -1/Access | Reached level 34 36835 | -1/Access | Upgraded with Power slot (x1) 36908 | -1/Access | Destroyed 9 combat bots 36984 | -1/Access | Spotted B-99 Colossus 36986 | -1/Access | Found Prototype Device 37016 | -1/Access | Identified exit to Surface 37048 | -1/Access | Discovered new exit (range 15) 37069 | -1/Access | Identified exit to Command 37069 | -1/Access | Entered Command 37095 | -1/Command | Reached level 35 37132 | -1/Command | Identified System Purifier 37162 | -1/Command | Phase Generator disabled 37319 | -1/Command | First assault squad dispatched 37643 | -1/Command | Core integrity fell below 50% 37676 | -1/Command | Spotted M Guard 37677 | -1/Command | Spotted M Guard 37677 | -1/Command | Spotted Combat Programmer 37677 | -1/Command | Spotted Combat Programmer 37681 | -1/Command | Met MAIN.C 37681 | -1/Command | Reached level 36 37681 | -1/Command | 0b10 Conduit disabled 37692 | -1/Command | Destroyed 18 combat bots 37707 | -1/Command | Core integrity fell below 20% 37709 | -1/Command | Destroyed MAIN.C Shell 37710 | -1/Command | Destroyed by Combat Programmer with EMDS Last Messages --------------- 37702_ Destroyed Prototype Device. 37702_ Mak. Axe follow-up attack on MAIN.C. 37702_ Penetrated by EMDS Slug. 37704_ MAIN.C suffers critical hit (Smash). 37704_ Destroyed Prototype Energy Gun. 37704_ Mak. Axe follow-up attack on MAIN.C. 37706_ Penetrated by EMDS Slug. 37706_ MAIN.C suffers critical hit (Smash). 37706_ Destroyed Prototype Treads. 37706_ Mak. Axe follow-up attack on MAIN.C. 37706_ Longsword +1 follow-up attack on MAIN.C. 37707_ EMDS Slug penetrates MAIN.C. 37708_ Penetrated by EMDS Slug. 37709_ MAIN.C destroyed. 37709_ MAIN.C's core emerges from the rubble. 37709_ Knocked back. 37710_ Penetrated by EMDS Slug. [Achievement: 30k Club] [Achievement: 40k Club] [Achievement: 50k Club] Map ----- +----------------------------------------------------+ | ????????????????????????####?###??###????????##??? | | ?????????????????????#?#################????#?#?#? | | ???????????????????#######?###???########??#?#???? | | ?????????????????#########?#?#####?####?####?##?#? | | ????????????????##?###########?##############????? | | ???????????????#?#########?##?###############????? | | ??????????????#######?##?########?#############??? | | ?????????????####?#######?####?##########??######? | | ???????????? ###?##?#?#########?####?##########??? | | ??????????? #############??###?########?##?###### | | ?????????? #?#######?####???############?####### | | ?????????? ? ##########?####?#?#####?##?###?###### | | ?????????? ##########?#?######?###############?# | | ????????? ?##################################### | | ????????? ??##?#?"""?"" """" ########### | | ???????? ?#####"" "" ######?#### | | ?????????#?#?###?#""?"" "" ########### | | ??????? ? ?#####""""""""""" / | | ??????? ##??#" " """ p | | ??????? ? ??###"" """""" p Y Y | | ??????? ? ##?##"" """""" ########### | | ??????? ? ?##?# " """""" ##?######## | | ??????? ? ?##### " "" ########?## | | ??#?#??#?#+####### " " ""##########? | | ??????? ######""""""""" % M """"###?######? | | ???? ?? ? ######"" @ """""""###?##?#### | | ?? ???? ?#?### " """"""####?###### | | k?????? ###### % " " " #####?##?## | | ??????? ####?# " " " " ###?#?##### | | ??????? """ " " " """ " #####?####? | | ????????k """ """ " " "" " ########### | | ????????? """ " " " " ########### | | ????? ?? #??## """""""""" " ########### | | ????????? ? ##### " """ " """"""""########### | | ??? ????? ?##### """ " " " ########### | | ??????????? ###?######?######################?### | | ?????????? ####?#?###??###########?############# | | ??R???????? ?############??#?####?#####?####?##### | | ???????????? ######?###??##?#####################? | | ?????????? ??##?#######?###?###?####?#########?#?# | | ???????????????########?#########?#??##?#?#?###?#? | | ??????????? ???###?#########?###########?##?##??## | | ????????????????############?###?#####?###??#??### | | ?????????????????##??####?#?##??###########??????? | | ???????????????????###?###?#####?########???#?#??? | | ?????????????????????###########?#######?????#?#?? | | ????????????????????????##?##?##??###????????#???? | | ??????????????????????????#???#??????????????###?? | | ????????????????????#??????????????????????????#?? | | ???????????????????????????????????????????#??#??# | +----------------------------------------------------+ Best States ------------- Heat Dissipation 75 Energy Generation 90 Energy Capacity 790 Matter Stores 300 Matter Capacity 300 Sight Range 19 Robot Scan Range 30 Terrain Scan Range 24 Terrain Scan Density 610 ECM Strength 1 Jamming Range 22 Cloak Strength 4 Additional Mass Support 25 Armor Coverage 400 Weapon Shielding 100 Melee Speed Boost 30 Phase Shifting 20 Evasion (%) 98 Melee Accuracy 16 Armor Integrity Analysis 50 Force Boost 20 Offensive Hacking 34 Defensive Hacking 35 Item Schematics ----------------- Nuclear Pulse Array | -7/Factory | Hacked Combat Drone Bay | -7/Data Miner | Free Lgt. Regenerative Plating | -7/Data Miner | Free Biomechanical Wings | -7/Data Miner | Free Gravity Neutralizer | -7/Data Miner | Free Scatter Rocket Array | -7/Data Miner | Free Thunder Leg | -7/Data Miner | Free Imp. Dynamic Insulation System | -7/Data Miner | Free Hyp. Coil Gun | -7/Data Miner | Free Hvy. Machine Gun | -7/Data Miner | Free Centrium Wheel | -7/Data Miner | Free Cld. VTOL Module | -6/Factory | Hacked Assault Drone Bay | -5/Zhirov | Free Exp. Heat Sink | -5/Zhirov | Free Exp. Optical Array | -5/Zhirov | Free Imp. Arc Thrower | -5/Zhirov | Free Cld. Cesium-ion Thruster | -4/Factory | Hacked Robot Schematics ------------------ B-48 Gladiator | -7/Data Miner | Free Y-54 Guardian | -7/Data Miner | Free L-41 Fighter | -7/Data Miner | Free M-28 Smith | -7/Data Miner | Free K-01 Serf | -5/Factory | Archive T-07 Excavator | -5/Factory | Archive A-02 Transporter | -5/Factory | Archive A-15 Conveyor | -5/Factory | Archive R-06 Scavenger | -5/Factory | Archive R-10 Processor | -5/Factory | Archive M-14 Sweeper | -5/Factory | Archive M-22 Extractor | -5/Factory | Archive M-30 Cleanser | -5/Factory | Archive M-13 Machinist | -5/Factory | Archive M-36 Artificer | -5/Factory | Archive O-16 Technician | -5/Factory | Archive O-24 Administrator | -5/Factory | Archive O-32 Director | -5/Factory | Archive W-16 Scout | -5/Factory | Archive W-25 Informer | -5/Factory | Archive W-44 Eye | -5/Factory | Archive S-10 Pest | -5/Factory | Archive S-27 Virus | -5/Factory | Archive S-43 Plague | -5/Factory | Archive G-34 Mercenary | -5/Factory | Archive G-47 Trooper | -5/Factory | Archive G-50 Soldier | -5/Factory | Archive G-67 Veteran | -5/Factory | Archive G-73 Enforcer | -5/Factory | Archive B-36 Bruiser | -5/Factory | Archive B-60 Warrior | -5/Factory | Archive B-74 Champion | -5/Factory | Archive L-31 Rogue | -5/Factory | Archive L-61 Swordsman | -5/Factory | Archive Y-45 Defender | -5/Factory | Archive Y-64 Sentinel | -5/Factory | Archive Y-72 Warden | -5/Factory | Archive D-53 Grenadier | -5/Factory | Archive D-63 Destroyer | -5/Factory | Archive D-83 Annihilator | -5/Factory | Archive X-57 Shotgunner | -5/Factory | Archive X-62 Marksman | -5/Factory | Archive X-67 Chaingunner | -5/Factory | Archive X-72 Disruptor | -5/Factory | Archive X-77 Beamer | -5/Factory | Archive X-82 Rainmaker | -5/Factory | Archive X-87 Electro | -5/Factory | Archive H-55 Commando | -5/Factory | Archive H-66 Slayer | -5/Factory | Archive H-77 Assassin | -5/Factory | Archive H-88 Terminator | -5/Factory | Archive P-60 Hacker | -5/Factory | Archive P-70 Sage | -5/Factory | Archive P-80 Master | -5/Factory | Archive Fabricated ------------ Cld. VTOL Module | x1 | -6/Factory Gravity Neutralizer | x1 | -6/Factory Cld. Cesium-ion Thruster | x1 | -4/Factory Cld. Cesium-ion Thruster | x1 | -3/Proximity Caves Repaired ---------- Nothing Studied --------- Flight Unit | -7/Factory | Hacked VTOL Module | -7/Factory | Hacked Great Maul | -7/Factory | Hacked Power Maul | -6/Factory | Hacked Chainsword | -6/Factory | Hacked Lgt. Angular Momentum Engine | -6/Factory | Hacked Impulse Thruster | -4/Factory | Hacked Alien Tech Used ----------------- Integrated Dissipator Achievements -------------- 30k Club 40k Club 50k Club All-out Warlord Are We The Baddies? Dangerous Findings Denied? Gladiator Highlander I Have Friends Everywhere Meet Your Maker Shocking Conclusion Supersonic Treasure Hunter Ultimate Loadout Welcome To The Revolution Challenges ------------ None RPGLIKE | -11 -10 -10 -10 -9 -8 -7 -7 -7 -7 -6 -6 -6 -6 -6 -6 -5 -5 -5 -5 -5 -4 -4 -4 -4 -4 -3 -3 -2 -1 -1 --------- Run | Yrd Mat Min Exi Min Mat Fac Low Low Dat Pro Fac Low Low Zio Dee Pro Fac Upp Upp Zhi Pro Fac Upp Upp War Pro Res Res Acc Com Levels Raised 35 | . 3 . 1 1 5 4 . . 1 2 1 . 1 . . 1 2 . 1 . . 1 1 . . 2 1 2 3 2 XP Earned 56103 | 3000 5349 650 304 1425 7450 6549 244 363 294 2932 2243 482 293 152 357 1333 3026 520 550 105 1111 1255 922 463 349 2467 1850 3354 3572 3139 XP Spent 55480 | 2940 3000 . 2200 500 7800 7420 . . . 4610 410 . 1100 . . 2900 3080 . 1250 . . 1700 1425 . . 1450 3200 2350 5100 3045 Upgrades 101 | 10 9 . 2 1 8 12 . . . 9 2 . 1 . . 1 5 . 2 . . 1 6 . . 4 1 3 3 21 Power Slot 2 | . . . . 1 . . . . . . . . . . . . . . . . . . . . . . . . 1 . Propulsion Slot 5 | 1 1 . 1 . 1 . . . . . . . . . . . . . . . . 1 . . . . . . . . Utility Slot 11 | 2 . . 1 . 2 2 . . . 1 . . . . . 1 . . . . . . . . . . 1 . 1 . Weapon Slot 3 | 1 . . . . 2 . . . . . . . . . . . . . . . . . . . . . . . . . Core Integrity 23 | . . . . . . 2 . . . . . . . . . . . . . . . . . . . . . . . 21 Heat Dissipation 5 | 2 . . . . . 1 . . . . 1 . . . . . 1 . . . . . . . . . . . . . Energy Generation 3 | . 1 . . . . . . . . . . . . . . . 2 . . . . . . . . . . . . . Mass Support 3 | . 1 . . . . 1 . . . . . . 1 . . . . . . . . . . . . . . . . . Inventory Capacity 4 | 1 . . . . 1 . . . . . . . . . . . . . 1 . . . . . . . . 1 . . Sight Range 3 | . . . . . . 1 . . . . 1 . . . . . . . 1 . . . . . . . . . . . Sensor Range 15 | . . . . . . . . . . 5 . . . . . . . . . . . . 6 . . 4 . . . . Terrain Scan Density 6 | 3 . . . . . 1 . . . 1 . . . . . . . . . . . . . . . . . 1 . . Melee Accuracy 7 | . 4 . . . . . . . . 2 . . . . . . . . . . . . . . . . . . 1 . Hack Attack % 4 | . 1 . . . 1 1 . . . . . . . . . . 1 . . . . . . . . . . . . . Hack Defense % 3 | . 1 . . . 1 . . . . . . . . . . . 1 . . . . . . . . . . . . . KI Damage % 4 | . . . . . . 3 . . . . . . . . . . . . . . . . . . . . . 1 . . Protomatter Created 6942 | . 289 . . 137 271 122 . 107 . 456 227 142 . . 41 151 535 310 234 87 299 163 769 519 . 640 371 246 558 268 Integrity Restored 10616 | . 663 . . 421 677 227 . 306 . 439 408 190 . . . 452 1257 374 410 59 152 117 1380 533 . 514 486 302 881 368 Core 8682 | . 663 . . 301 583 208 . 207 . 328 327 132 . . . 435 1008 210 338 41 122 93 1131 452 . 406 402 243 699 353 Parts 1934 | . . . . 120 94 19 . 99 . 111 81 58 . . . 17 249 164 72 18 30 24 249 81 . 108 84 59 182 15 Protomatter Decayed 7811 | . 66 . . . 30 84 . . . 263 84 . . . 68 . 394 61 227 . 243 65 209 284 679 465 170 4099 269 51 Game ------ Seed ProcessingNuclearJets Manual? 0 Play Time 14:45:08 Cumulative 133.5 hours Start 2025.11.20 @ 18:32:56 End 2025.11.21 @ 04:33:01 Sessions 1 Manual Loads 0 Difficulty Rogue Special Mode Winter2019/RPGLIKE Game No. 92 Rogue 92 Adventurer 0 Explorer 0 Win Type - Total 0 Types 0/0/0/0/0/0/0/0/0/0 Lore% 66 Gallery% 44 Achievement% 45 Wizard Run 0 Options --------- Layout 0 ASCII 0 Keyboard 0 Movement Mouse Keybinds 0 Fullscreen 2 Font 24/Smallcaps Map View 76x50 Zoom Use 0% Tactical HUD 1 Map Filters NONE Filters NONE Steam 1 RUN: ffc8b02d-27ce-4e72-80b2-deafba0b81fd